{"text_format":"1","workbook":"xlsx","n_sheets":5,"sheets":["Notes","Summary","ICB","Orgs","BS"],"not_rendered":{"charts":0,"images":0,"macros":1,"external_links":0,"defined_names":4,"comments":0,"pivot_tables":0},"unopened":[],"bounds":{"document_bytes":16777216,"sheet_cells":100000,"rows_first":2000,"rows_last":500,"rows_between":2000,"halvings":0,"cell_chars":16384,"cell_head_chars":4096},"cells_cut":0,"cells_raw":0,"read":"whole","date_system":"1900"}

{"sheet":"Notes","index":0,"n_rows":2,"n_cols":10,"rows_kept":2,"cut":false,"hidden":false,"merged":[]}
[]
["Outpatients Friends and Family Test (FFT) Data - December 2022",null,null,null,null,null,null,null,null,"  Show data for:"]

{"sheet":"Summary","index":1,"n_rows":10,"n_cols":10,"rows_kept":10,"cut":false,"hidden":false,"merged":[[5,1,6,1],[5,4,5,5],[5,6,5,7],[5,8,5,9]]}
[]
[]
[]
[]
[]
[null,"FFT","Number of organisations submitting","Total responses to date","Responses",null,"Percentage Positive",null,"Percentage Negative"]
[null,null,"2022-12-01","2022-12-01","2022-12-01","2022-11-26","2022-12-01","2022-11-26","2022-12-01","2022-11-26"]
[null,"Total",234,26729178,297328,381501,0.93824665016412856,0.93422559836016161,3.0844723672173491E-2,3.2545130943300277E-2]
[null,"NHS",{"$f":"C8-C10","v":135},{"$f":"D8-D10","v":25174660},282921,{"$f":"F8-F10","v":364967},0.93646636340179767,0.93254899603550834,3.181806935504964E-2,3.3470036803379247E-2]
[null,"IS",99,1554518,14407,16534,0.97320746859165685,0.97447683561146725,1.1730408829041437E-2,1.0644732067255353E-2]

{"sheet":"ICB","index":2,"n_rows":55,"n_cols":12,"rows_kept":55,"cut":false,"hidden":false,"merged":[[7,5,8,5],[7,6,7,11],[4,1,5,1],[4,4,5,4],[7,0,8,0],[7,1,8,1],[7,2,8,2],[7,3,8,3],[7,4,8,4]]}
[]
[]
[]
[]
[]
[]
[]
["ICB Code","ICB Name","Total Responses","Total Eligible","Percentage Positive","Percentage Negative","Breakdown of Responses"]
[null,null,null,null,null,null,"Very Good","Good","Neither Good nor Poor","Poor","Very Poor","Don't Know"]
[null,"England (including Independent Sector Providers)",297328,4607865,0.93824665016412856,3.0844723672173491E-2,242736,36231,6989,3991,5180,2201]
[null,"England (excluding Independent Sector Providers)",282921,4447759,0.93646636340179767,3.181806935504964E-2,230192,34754,6817,3914,5088,2156]
[null,"Selection (excluding suppressed data)",{"$f":"SUBTOTAL(9, C13:C55)","v":297328},{"$f":"SUBTOTAL(9, D13:D55)","v":4607865},{"$f":"IFERROR((G12+H12)/C12, \"-\")","v":0.93824665016412856},{"$f":"IFERROR((J12+K12)/C12, \"-\")","v":3.0844723672173491E-2},{"$f":"SUBTOTAL(9, G13:G55)","v":242736},36231,6989,3991,5180,2201]
["QE1","LANCASHIRE AND SOUTH CUMBRIA ICB",6250,95079,0.93823999999999996,2.7359999999999999E-2,5028,836,178,86,85,37]
["QF7","SOUTH YORKSHIRE ICB",6721,205145,0.93319446510935877,3.5113822347864899E-2,5545,727,174,109,127,39]
["QGH","HEREFORDSHIRE AND WORCESTERSHIRE ICB",5239,43106,0.96564229814850167,1.7560603168543614E-2,4663,396,77,47,45,11]
["QH8","MID AND SOUTH ESSEX ICB",2020,25811,0.92871287128712876,3.6633663366336632E-2,1612,264,57,25,49,13]
["QHG","BEDFORDSHIRE, LUTON AND MILTON KEYNES ICB",2760,48457,0.93586956521739129,2.5724637681159419E-2,2082,501,91,36,35,15]
["QHL","BIRMINGHAM AND SOLIHULL ICB",803,158145,0.96513075965130757,1.4943960149439602E-2,672,103,15,4,8,1]
["QHM","NORTH EAST AND NORTH CUMBRIA ICB",5770,272200,0.95875216637781624,1.9410745233968803E-2,4846,686,104,55,57,22]
["QJ2","DERBY AND DERBYSHIRE ICB",6134,83510,0.93739810890120634,3.3257254646234108E-2,4932,818,171,101,103,9]
["QJG","SUFFOLK AND NORTH EAST ESSEX ICB",9224,73386,0.94416738941890721,2.3742411101474414E-2,7309,1400,239,115,104,57]
["QJK","DEVON ICB",491,87535,0.9775967413441955,1.2219959266802444E-2,423,57,4,2,4,1]
["QJM","LINCOLNSHIRE ICB",2848,40611,0.9122191011235955,3.9676966292134831E-2,2162,436,105,51,62,32]
["QK1","LEICESTER, LEICESTERSHIRE AND RUTLAND ICB",9682,62425,0.94226399504234659,2.8196653583970253E-2,8050,1073,228,115,158,58]
["QKK","SOUTH EAST LONDON ICB",15837,199580,0.91740860011365788,4.3632001010292354E-2,11985,2544,538,339,352,79]
["QKS","KENT AND MEDWAY ICB",14043,105840,0.94766075624866486,2.8199102755821406E-2,11747,1561,321,185,211,18]
["QM7","HERTFORDSHIRE AND WEST ESSEX ICB",1158,76478,0.94645941278065626,3.281519861830743E-2,883,213,23,13,25,1]
["QMF","NORTH EAST LONDON ICB",12378,176556,0.87098077233801907,6.5196316044595248E-2,8679,2102,428,269,538,362]
["QMJ","NORTH CENTRAL LONDON ICB",20534,247236,0.9348884776468297,2.8976331937274762E-2,16361,2836,449,224,371,293]
["QMM","NORFOLK AND WAVENEY ICB",4833,80013,0.96006621146285953,1.9035795572108421E-2,4263,377,91,41,51,10]
["QNC","STAFFORDSHIRE AND STOKE-ON-TRENT ICB",8185,50524,0.96090409285277945,1.9303604153940133E-2,7134,731,141,65,93,21]
["QNQ","FRIMLEY ICB",1239,41791,0.96771589991928975,8.8781275221953195E-3,955,244,24,6,5,5]
["QNX","SUSSEX ICB",3510,69420,0.95641025641025645,1.6524216524216526E-2,2974,383,73,30,28,22]
["QOC","SHROPSHIRE, TELFORD AND WREKIN ICB",2171,32554,0.98526024873330265,7.8304928604329797E-3,2009,130,14,8,9,1]
["QOP","GREATER MANCHESTER ICB",14105,276043,0.93364055299539173,3.7079049982275791E-2,11514,1655,325,232,291,88]
["QOQ","HUMBER AND NORTH YORKSHIRE ICB",8668,126636,0.9319335486848177,3.553299492385787E-2,6813,1265,210,133,175,72]
["QOX","BATH AND NORTH EAST SOMERSET, SWINDON AND WILTSHIRE ICB",483,70140,0.98136645962732916,1.2422360248447204E-2,441,33,3,4,2,0]
["QPM","NORTHAMPTONSHIRE ICB",2555,62851,0.94168297455968686,2.700587084148728E-2,2072,334,74,27,42,6]
["QR1","GLOUCESTERSHIRE ICB",2672,45295,0.94610778443113774,2.9565868263473054E-2,2154,374,56,46,33,9]
["QRL","HAMPSHIRE AND ISLE OF WIGHT ICB",5953,142861,0.95010918864438099,2.469343188308416E-2,5074,582,119,65,82,31]
["QRV","NORTH WEST LONDON ICB",13981,216338,0.9244689221085759,3.569129532937558E-2,11172,1753,386,238,261,171]
["QSL","SOMERSET ICB",1725,11337,0.97449275362318843,1.4492753623188406E-2,1574,107,19,13,12,0]
["QT1","NOTTINGHAM AND NOTTINGHAMSHIRE ICB",4771,74880,0.95996646405365749,1.7815971494445609E-2,4163,417,90,46,39,16]
["QT6","CORNWALL AND THE ISLES OF SCILLY ICB",1946,35203,0.94501541623843777,2.6207605344295993E-2,1584,255,52,27,24,4]
["QU9","BUCKINGHAMSHIRE, OXFORDSHIRE AND BERKSHIRE WEST ICB",10872,135243,0.94039735099337751,3.2100809418690215E-2,9122,1102,252,164,185,47]
["QUA","BLACK COUNTRY ICB",5052,99325,0.90815518606492474,3.7212984956452887E-2,3927,661,140,80,108,136]
["QUE","CAMBRIDGESHIRE AND PETERBOROUGH ICB",6204,97813,0.94519664732430686,2.6595744680851064E-2,5127,737,160,91,74,15]
["QUY","BRISTOL, NORTH SOMERSET AND SOUTH GLOUCESTERSHIRE ICB",6833,74584,0.94760720035123669,2.268403336748134E-2,5636,839,129,90,65,74]
["QVV","DORSET ICB",3339,13608,0.94758909853249473,2.0365378855944895E-2,2723,441,62,25,43,45]
["QWE","SOUTH WEST LONDON ICB",8900,133583,0.92662921348314609,4.5505617977528091E-2,7315,932,202,129,276,46]
["QWO","WEST YORKSHIRE ICB",7113,198797,0.93771966821313091,3.191339800365528E-2,5741,929,188,96,131,28]
["QWU","COVENTRY AND WARWICKSHIRE ICB",4935,76793,0.93657548125633228,3.0800405268490375E-2,3906,716,113,63,89,48]
["QXU","SURREY HEARTLANDS ICB",3604,82642,0.87180910099889009,7.9078801331853493E-2,2620,522,119,88,197,58]
["QYG","CHESHIRE AND MERSEYSIDE ICB",27380,198385,0.94528853177501826,2.8122717311906503E-2,23200,2682,573,331,439,155]
["IS1","INDEPENDENT SECTOR PROVIDERS",14407,160106,0.97320746859165685,1.1730408829041437E-2,12544,1477,172,77,92,45]

{"sheet":"Orgs","index":3,"n_rows":246,"n_cols":21,"rows_kept":246,"cut":false,"hidden":false,"merged":[[7,17,8,17],[7,18,8,18],[4,1,5,2],[6,13,6,20],[7,0,8,0],[7,1,8,1],[7,2,8,2],[7,3,8,3],[7,4,8,4],[7,5,8,5],[7,6,8,6],[7,7,7,12],[7,19,8,19],[7,20,8,20],[7,13,8,13],[7,14,8,14],[7,15,8,15],[7,16,8,16]]}
[]
[]
[]
[]
[null,null,null,null,null,null,null,"  "]
[null,null,null,null,null,null,null,"  "]
[null,null,null,null,null,null,null,null,null,null,null,null,null,"Response Mode"]
["ICB Code","Trust Code","Trust Name","Total Responses","Total Eligible","Percentage Positive","Percentage Negative","Breakdown of Responses",null,null,null,null,null,"Mode SMS","Mode Electronic At Appointment","Mode Electronic After Appointment","Mode Paper At Appointment","Mode Paper After Appointment","Mode Telephone","Mode Online","Mode Other"]
[null,null,null,null,null,null,null,"Very Good","Good","Neither Good nor Poor","Poor","Very Poor","Don't Know"]
[null,null,"England (including Independent Sector Providers)",297328,4607865,0.93824665016412856,3.0844723672173491E-2,242736,36231,6989,3991,5180,2201,193863,7377,3053,27112,3638,24089,36982,1214]
[null,null,"England (excluding Independent Sector Providers)",282921,4447759,0.93646636340179767,3.181806935504964E-2,230192,34754,6817,3914,5088,2156,193427,6842,1841,22220,3488,24089,29800,1214]
[null,null,"Selection (excluding suppressed data)",{"$f":"SUBTOTAL(9, D13:D10000)","v":297328},{"$f":"SUBTOTAL(9, E13:E10000)","v":4607865},{"$f":"IFERROR((H12+I12)/D12, \"-\")","v":0.93822310714093526},{"$f":"IFERROR((K12+L12)/D12, \"-\")","v":3.0844723672173491E-2},{"$f":"SUBTOTAL(9, H13:H10000)","v":242729},{"$f":"SUBTOTAL(9, I13:I10000)","v":36231},6989,3991,5180,2201,193863,7377,3053,27106,3637,24089,36982,1214]
["QE1","RXL","BLACKPOOL TEACHING HOSPITALS NHS FOUNDATION TRUST",1380,29899,0.94420289855072459,3.0434782608695653E-2,1129,174,27,24,18,8,760,1,0,595,0,0,24,0]
["QE1","RXN","LANCASHIRE TEACHING HOSPITALS NHS FOUNDATION TRUST",2257,42683,0.91936198493575538,3.5445281346920689E-2,1702,373,88,41,39,14,1763,0,0,14,0,460,20,0]
["QE1","RTX","UNIVERSITY HOSPITALS OF MORECAMBE BAY NHS FOUNDATION TRUST",2613,22497,0.95139686184462302,1.8752391886720246E-2,2197,289,63,21,28,15,2149,0,0,0,0,458,6,0]
["QF7","RFF","BARNSLEY HOSPITAL NHS FOUNDATION TRUST",516,30954,0.94961240310077522,3.294573643410853E-2,441,49,7,10,7,2,516,0,0,0,0,0,0,0]
["QF7","RP5","DONCASTER AND BASSETLAW TEACHING HOSPITALS NHS FOUNDATION TRUST",312,41312,0.95192307692307687,3.8461538461538464E-2,248,49,3,5,7,0,0,0,0,296,0,0,16,0]
["QF7","RCU","SHEFFIELD CHILDREN'S NHS FOUNDATION TRUST",1515,15872,0.89174917491749173,6.2046204620462043E-2,1220,131,61,42,52,9,0,0,0,9,0,1493,13,0]
["QF7","RHQ","SHEFFIELD TEACHING HOSPITALS NHS FOUNDATION TRUST",4144,94891,0.94232625482625487,2.6544401544401543E-2,3427,478,101,52,58,28,3506,0,0,128,0,430,80,0]
["QF7","RFR","THE ROTHERHAM NHS FOUNDATION TRUST",234,22116,0.9786324786324786,1.282051282051282E-2,209,20,2,0,3,0,0,0,0,229,0,0,5,0]
["QGH","RWP","WORCESTERSHIRE ACUTE HOSPITALS NHS TRUST",5239,28764,0.96564229814850167,1.7560603168543614E-2,4663,396,77,47,45,11,5239,0,0,0,0,0,0,0]
["QGH","RLQ","WYE VALLEY NHS TRUST",0,14342,"NA","NA",0,0,0,0,0,0,0,0,0,0,0,0,0,0]
["QH8","RAJ","MID AND SOUTH ESSEX NHS FOUNDATION TRUST",2020,25811,0.92871287128712876,3.6633663366336632E-2,1612,264,57,25,49,13,1674,0,0,0,0,324,22,0]
["QHG","RC9","BEDFORDSHIRE HOSPITALS NHS FOUNDATION TRUST",535,30136,0.92523364485981308,4.2990654205607479E-2,363,132,15,7,16,2,0,225,0,4,0,0,306,0]
["QHG","RD8","MILTON KEYNES UNIVERSITY HOSPITAL NHS FOUNDATION TRUST",2225,18321,0.93842696629213485,2.1573033707865168E-2,1719,369,76,29,19,13,2141,0,0,53,0,0,31,0]
["QHL","RQ3","BIRMINGHAM WOMEN'S AND CHILDREN'S NHS FOUNDATION TRUST",92,28662,0.95652173913043481,3.2608695652173912E-2,83,5,1,1,2,0,0,0,0,0,0,0,92,0]
["QHL","RRK","UNIVERSITY HOSPITALS BIRMINGHAM NHS FOUNDATION TRUST",711,129483,0.96624472573839659,1.2658227848101266E-2,589,98,14,3,6,1,0,0,0,711,0,0,0,0]
["QHM","RXP","COUNTY DURHAM AND DARLINGTON NHS FOUNDATION TRUST",38,37524,0.97368421052631582,2.6315789473684209E-2,35,2,0,0,1,0,0,0,0,38,0,0,0,0]
["QHM","RR7","GATESHEAD HEALTH NHS FOUNDATION TRUST",609,11629,0.95238095238095233,2.6272577996715927E-2,524,56,13,7,9,0,588,0,0,21,0,0,0,0]
["QHM","R7W2O","NEWCASTLE NEWMEDICA LTD",73,"NA",1,0,71,2,0,0,0,0,0,0,0,73,0,0,0,0]
["QHM","RNN","NORTH CUMBRIA INTEGRATED CARE NHS FOUNDATION TRUST",289,418,0.97923875432525953,1.384083044982699E-2,256,27,2,2,2,0,6,0,0,283,0,0,0,0]
["QHM","RVW","NORTH TEES AND HARTLEPOOL NHS FOUNDATION TRUST",586,9909,0.9539249146757679,2.7303754266211604E-2,485,74,8,3,13,3,579,0,0,7,0,0,0,0]
["QHM","RTF","NORTHUMBRIA HEALTHCARE NHS FOUNDATION TRUST",1432,32725,0.94273743016759781,2.5139664804469275E-2,1156,194,34,25,11,12,1156,0,0,0,276,0,0,0]
["QHM","RTR","SOUTH TEES HOSPITALS NHS FOUNDATION TRUST",1653,41137,0.9637023593466425,1.3914095583787053E-2,1405,188,33,11,12,4,1464,40,136,0,0,0,13,0]
["QHM","R0B","SOUTH TYNESIDE AND SUNDERLAND NHS FOUNDATION TRUST",119,48807,0.94117647058823528,3.3613445378151259E-2,103,9,2,0,4,1,0,0,0,96,0,0,23,0]
["QHM","RTD","THE NEWCASTLE UPON TYNE HOSPITALS NHS FOUNDATION TRUST",971,90051,0.97322348094747679,1.2358393408856848E-2,811,134,12,7,5,2,0,0,0,966,0,0,5,0]
["QJ2","RFS","CHESTERFIELD ROYAL HOSPITAL NHS FOUNDATION TRUST",1301,24644,0.92006149116064562,3.7663335895465028E-2,1020,177,50,27,22,5,710,7,479,0,0,0,105,0]
["QJ2","RTG","UNIVERSITY HOSPITALS OF DERBY AND BURTON NHS FOUNDATION TRUST",4833,58866,0.94206496999793088,3.2071177322573974E-2,3912,641,121,74,81,4,4317,24,0,56,0,0,436,0]
["QJG","RDE","EAST SUFFOLK AND NORTH ESSEX NHS FOUNDATION TRUST",8709,48800,0.94178436100585605,2.4916752784475828E-2,6881,1321,235,113,104,55,4037,0,0,114,0,3835,723,0]
["QJG","RGR","WEST SUFFOLK NHS FOUNDATION TRUST",515,24586,0.98446601941747569,3.8834951456310678E-3,428,79,4,2,0,2,0,226,0,229,0,0,60,0]
["QJK","R5J2A","OPTIMAX - NEWTON ABBOT",48,"NA",1,0,44,4,0,0,0,0,0,0,0,0,48,0,0,0]
["QJK","RH8","ROYAL DEVON UNIVERSITY HEALTHCARE NHS FOUNDATION TRUST",227,30142,0.97797356828193838,1.7621145374449341E-2,196,26,0,1,3,1,0,0,0,199,0,0,28,0]
["QJK","RA9","TORBAY AND SOUTH DEVON NHS FOUNDATION TRUST",26,28315,1,0,23,3,0,0,0,0,0,0,0,26,0,0,0,0]
["QJK","RK9","UNIVERSITY HOSPITALS PLYMOUTH NHS TRUST",190,29078,0.96842105263157896,1.0526315789473684E-2,160,24,4,1,1,0,0,0,0,169,0,0,21,0]
["QJM","RWD","UNITED LINCOLNSHIRE HOSPITALS NHS TRUST",2848,40611,0.9122191011235955,3.9676966292134831E-2,2162,436,105,51,62,32,1285,0,0,0,0,1418,145,0]
["QK1","RWE","UNIVERSITY HOSPITALS OF LEICESTER NHS TRUST",9682,62425,0.94226399504234659,2.8196653583970253E-2,8050,1073,228,115,158,58,8585,334,0,638,0,0,125,0]
["QKK","RJ1","GUY'S AND ST THOMAS' NHS FOUNDATION TRUST",2959,81731,0.91855356539371413,4.4609665427509292E-2,2319,399,96,56,76,13,1964,2,0,322,0,0,671,0]
["QKK","RJZ","KING'S COLLEGE HOSPITAL NHS FOUNDATION TRUST",9455,75820,0.91041776837652033,4.6218931782125862E-2,7018,1590,350,220,217,60,8509,113,0,0,2,711,120,0]
["QKK","RJ2","LEWISHAM AND GREENWICH NHS TRUST",3423,42029,0.93572889278410754,3.5641250365176742E-2,2648,555,92,63,59,6,2308,0,0,0,949,0,166,0]
["QKS","RN7","DARTFORD AND GRAVESHAM NHS TRUST",755,16416,0.97350993377483441,1.9867549668874173E-2,652,83,3,7,8,2,0,432,0,152,0,0,171,0]
["QKS","RVV","EAST KENT HOSPITALS UNIVERSITY NHS FOUNDATION TRUST",8724,28188,0.94944979367262727,2.5676295277395692E-2,7342,941,217,108,116,0,8724,0,0,0,0,0,0,0]
["QKS","RWF","MAIDSTONE AND TUNBRIDGE WELLS NHS TRUST",2865,38524,0.9619546247818499,2.0942408376963352E-2,2457,299,46,29,31,3,0,0,0,632,0,0,2233,0]
["QKS","RPA","MEDWAY NHS FOUNDATION TRUST",1699,22712,0.90288404944084755,5.7092407298410829E-2,1296,238,55,41,56,13,0,0,0,0,0,0,1699,0]
["QM7","RWH","EAST AND NORTH HERTFORDSHIRE NHS TRUST",576,32323,0.97222222222222221,8.6805555555555559E-3,432,128,11,2,3,0,1,43,5,396,67,0,23,41]
["QM7","RQW","THE PRINCESS ALEXANDRA HOSPITAL NHS TRUST",347,19771,0.87031700288184433,9.2219020172910657E-2,244,58,12,11,21,1,0,0,0,0,0,0,0,347]
["QM7","RWG","WEST HERTFORDSHIRE TEACHING HOSPITALS NHS TRUST",235,24384,0.99574468085106382,4.2553191489361703E-3,207,27,0,0,1,0,0,235,0,0,0,0,0,0]
["QMF","RF4","BARKING, HAVERING AND REDBRIDGE UNIVERSITY HOSPITALS NHS TRUST",1347,37962,0.86488492947290274,5.3452115812917596E-2,1004,161,18,4,68,92,118,1,1220,0,0,0,8,0]
["QMF","R1H","BARTS HEALTH NHS TRUST",10211,111896,0.87014004504945652,6.7182450298697488E-2,7087,1798,372,246,440,268,8751,0,0,1392,0,0,68,0]
["QMF","RQX","HOMERTON HEALTHCARE NHS FOUNDATION TRUST",820,26698,0.89146341463414636,5.9756097560975607E-2,588,143,38,19,30,2,666,11,0,0,36,0,107,0]
["QMJ","RP4","GREAT ORMOND STREET HOSPITAL FOR CHILDREN NHS FOUNDATION TRUST",95,13592,0.91578947368421049,7.3684210526315783E-2,68,19,1,1,6,0,0,0,0,65,0,0,30,0]
["QMJ","RP6","MOORFIELDS EYE HOSPITAL NHS FOUNDATION TRUST",13313,43228,0.94884699166228503,1.8177721024562457E-2,10817,1815,254,120,122,185,13313,0,0,0,0,0,0,0]
["QMJ","RAP","NORTH MIDDLESEX UNIVERSITY HOSPITAL NHS TRUST",1488,30615,0.83534946236559138,0.10080645161290322,967,276,55,46,104,40,997,62,0,68,0,287,74,0]
["QMJ","RAL","ROYAL FREE LONDON NHS FOUNDATION TRUST",787,74863,0.86658195679796701,7.7509529860228715E-2,524,158,24,18,43,20,0,747,0,0,0,0,40,0]
["QMJ","RRV","UNIVERSITY COLLEGE LONDON HOSPITALS NHS FOUNDATION TRUST",4747,66187,0.93806614704023594,2.7807036022751211E-2,3894,559,115,37,95,47,3517,0,0,0,0,1230,0,0]
["QMJ","RKE","WHITTINGTON HEALTH NHS TRUST",104,18751,0.96153846153846156,2.8846153846153848E-2,91,9,0,2,1,1,0,67,0,37,0,0,0,0]
["QMM","RGP","JAMES PAGET UNIVERSITY HOSPITALS NHS FOUNDATION TRUST",1976,17648,0.98380566801619429,6.5789473684210523E-3,1888,56,17,5,8,2,0,0,0,1976,0,0,0,0]
["QMM","RM1","NORFOLK AND NORWICH UNIVERSITY HOSPITALS NHS FOUNDATION TRUST",1871,41784,0.95082843399251737,2.1378941742383754E-2,1552,227,49,20,20,3,1,0,0,16,0,0,1854,0]
["QMM","RCX","THE QUEEN ELIZABETH HOSPITAL, KING'S LYNN, NHS FOUNDATION TRUST",986,20581,0.93002028397565928,3.9553752535496957E-2,823,94,25,16,23,5,0,0,0,318,0,0,668,0]
["QNC","RRE","MIDLANDS PARTNERSHIP NHS FOUNDATION TRUST",27,2509,1,0,23,4,0,0,0,0,0,0,0,0,0,0,27,0]
["QNC","RJE","UNIVERSITY HOSPITALS OF NORTH MIDLANDS NHS TRUST",8158,48015,0.96077469968129448,1.9367492032360874E-2,7111,727,141,65,93,21,7773,36,0,340,0,0,9,0]
["QNQ","RDU","FRIMLEY HEALTH NHS FOUNDATION TRUST",1239,41791,0.96771589991928975,8.8781275221953195E-3,955,244,24,6,5,5,0,0,0,1229,0,0,10,0]
["QNX","RXC","EAST SUSSEX HEALTHCARE NHS TRUST",213,23545,0.99061032863849763,0,200,11,2,0,0,0,0,0,0,213,0,0,0,0]
["QNX","RPC","QUEEN VICTORIA HOSPITAL NHS FOUNDATION TRUST",1150,15174,0.9652173913043478,1.6521739130434782E-2,987,123,17,11,8,4,536,0,0,72,0,542,0,0]
["QNX","RYR","UNIVERSITY HOSPITALS SUSSEX NHS FOUNDATION TRUST",2147,30701,0.94829995342338147,1.8164881229622728E-2,1787,249,54,19,20,18,1815,0,0,0,0,330,2,0]
["QOC","RL1","THE ROBERT JONES AND AGNES HUNT ORTHOPAEDIC HOSPITAL NHS FOUNDATION TRUST",1399,6370,0.98498927805575409,7.1479628305932807E-3,1302,76,10,4,6,1,1393,6,0,0,0,0,0,0]
["QOC","RXW","THE SHREWSBURY AND TELFORD HOSPITAL NHS TRUST",772,26184,0.98575129533678751,9.0673575129533671E-3,707,54,4,4,3,0,0,0,0,769,0,0,3,0]
["QOP","RMC","BOLTON NHS FOUNDATION TRUST",2152,20864,0.91960966542750933,4.8791821561338287E-2,1774,205,57,42,63,11,1987,0,0,165,0,0,0,0]
["QOP","R0A","MANCHESTER UNIVERSITY NHS FOUNDATION TRUST",2527,111225,0.95488721804511278,2.6117926394934706E-2,1977,436,38,29,37,10,1,876,0,1326,0,0,45,279]
["QOP","RM3","NORTHERN CARE ALLIANCE NHS FOUNDATION TRUST",4673,46756,0.93216349240316709,4.258506312861117E-2,3845,511,89,82,117,29,4673,0,0,0,0,0,0,0]
["QOP","RWJ","STOCKPORT NHS FOUNDATION TRUST",585,23853,0.90598290598290598,4.6153846153846156E-2,443,87,18,15,12,10,461,12,1,0,0,111,0,0]
["QOP","RMP","TAMESIDE AND GLOSSOP INTEGRATED CARE NHS FOUNDATION TRUST",1664,14998,0.93088942307692313,4.1466346153846152E-2,1390,159,40,34,35,6,0,4,0,22,0,0,1638,0]
["QOP","RBV","THE CHRISTIE NHS FOUNDATION TRUST",1738,31349,0.93383199079401613,2.1864211737629459E-2,1442,181,64,18,20,13,1738,0,0,0,0,0,0,0]
["QOP","RRF","WRIGHTINGTON, WIGAN AND LEIGH NHS FOUNDATION TRUST",766,26998,0.93864229765013052,2.4804177545691905E-2,643,76,19,12,7,9,547,0,0,27,0,192,0,0]
["QOQ","RCD","HARROGATE AND DISTRICT NHS FOUNDATION TRUST",2826,15231,0.94692144373673037,2.4769992922859165E-2,2171,505,72,33,37,8,0,0,0,0,0,2826,0,0]
["QOQ","RWA","HULL UNIVERSITY TEACHING HOSPITALS NHS TRUST",3492,49601,0.93155784650630014,3.9805269186712483E-2,2822,431,77,58,81,23,2977,0,0,0,0,507,8,0]
["QOQ","RJL","NORTHERN LINCOLNSHIRE AND GOOLE NHS FOUNDATION TRUST",79,31051,0.92405063291139244,6.3291139240506333E-2,70,3,0,1,4,1,0,9,0,68,0,0,2,0]
["QOQ","RCB","YORK AND SCARBOROUGH TEACHING HOSPITALS NHS FOUNDATION TRUST",2271,30753,0.91413474240422721,4.1391457507705856E-2,1750,326,61,41,53,40,2128,0,0,0,143,0,0,0]
["QOX","RN3","GREAT WESTERN HOSPITALS NHS FOUNDATION TRUST",23,20692,1,0,22,1,0,0,0,0,0,0,0,18,0,0,5,0]
["QOX","RD1","ROYAL UNITED HOSPITALS BATH NHS FOUNDATION TRUST",175,32590,0.97142857142857142,2.2857142857142857E-2,163,7,1,2,2,0,0,0,0,165,0,0,10,0]
["QOX","RNZ","SALISBURY NHS FOUNDATION TRUST",285,16858,0.98596491228070171,7.0175438596491229E-3,256,25,2,2,0,0,0,0,0,283,0,0,2,0]
["QPM","RNQ","KETTERING GENERAL HOSPITAL NHS FOUNDATION TRUST",479,24169,0.95198329853862218,8.350730688935281E-3,409,47,19,1,3,0,0,0,0,0,0,0,479,0]
["QPM","RNS","NORTHAMPTON GENERAL HOSPITAL NHS TRUST",2076,38682,0.93930635838150289,3.1310211946050097E-2,1663,287,55,26,39,6,1446,0,0,0,325,293,12,0]
["QR1","RTE","GLOUCESTERSHIRE HOSPITALS NHS FOUNDATION TRUST",2672,45295,0.94610778443113774,2.9565868263473054E-2,2154,374,56,46,33,9,2450,0,0,0,0,217,5,0]
["QRL","RN5","HAMPSHIRE HOSPITALS NHS FOUNDATION TRUST",1089,32156,0.94674012855831036,1.5610651974288337E-2,918,113,29,9,8,12,399,0,0,438,0,221,31,0]
["QRL","R1F","ISLE OF WIGHT NHS TRUST",406,11675,0.98029556650246308,7.3891625615763543E-3,378,20,5,2,1,0,0,0,0,0,406,0,0,0]
["QRL","RHU","PORTSMOUTH HOSPITALS UNIVERSITY NATIONAL HEALTH SERVICE TRUST",4086,47792,0.94591287322564854,2.9858051884483601E-2,3463,402,81,53,69,18,4086,0,0,0,0,0,0,0]
["QRL","RHM","UNIVERSITY HOSPITAL SOUTHAMPTON NHS FOUNDATION TRUST",372,51238,0.9731182795698925,1.3440860215053764E-2,315,47,4,1,4,1,0,0,0,0,188,0,184,0]
["QRV","RQM","CHELSEA AND WESTMINSTER HOSPITAL NHS FOUNDATION TRUST",1257,52203,0.93874303898170242,3.5799522673031027E-2,1014,166,32,18,27,0,0,0,0,0,0,0,1257,0]
["QRV","RYJ","IMPERIAL COLLEGE HEALTHCARE NHS TRUST",4568,82054,0.92009632224168125,2.9334500875656741E-2,3718,485,94,62,72,137,0,1600,0,0,159,0,2809,0]
["QRV","R1K","LONDON NORTH WEST UNIVERSITY HEALTHCARE NHS TRUST",3914,41482,0.92079713847726108,4.1645375574859478E-2,3087,517,116,75,88,31,3228,0,0,674,0,7,5,0]
["QRV","RAN","ROYAL NATIONAL ORTHOPAEDIC HOSPITAL NHS TRUST",779,2710,0.92426187419768935,3.2092426187419767E-2,637,83,34,19,6,0,0,260,0,0,0,0,519,0]
["QRV","RAS","THE HILLINGDON HOSPITALS NHS FOUNDATION TRUST",2558,21347,0.91946833463643474,4.3784206411258797E-2,1916,436,91,54,58,3,0,5,0,0,222,0,2331,0]
["QRV","RPY","THE ROYAL MARSDEN NHS FOUNDATION TRUST",905,16542,0.95690607734806632,2.2099447513812154E-2,800,66,19,10,10,0,0,0,0,0,0,0,905,0]
["QSL","RH5","SOMERSET NHS FOUNDATION TRUST",118,597,0.97457627118644063,2.5423728813559324E-2,112,3,0,2,1,0,0,0,0,0,89,0,29,0]
["QSL","RA4","YEOVIL DISTRICT HOSPITAL NHS FOUNDATION TRUST",1607,10740,0.97448662103298067,1.3690105787181083E-2,1462,104,19,11,11,0,1471,26,0,34,76,0,0,0]
["QT1","RX1","NOTTINGHAM UNIVERSITY HOSPITALS NHS TRUST",2615,45511,0.97361376673040156,1.3001912045889101E-2,2366,180,25,14,20,10,0,0,0,2455,0,0,160,0]
["QT1","RK5","SHERWOOD FOREST HOSPITALS NHS FOUNDATION TRUST",2156,29369,0.9434137291280148,2.3654916512059369E-2,1797,237,65,32,19,6,0,0,0,8,0,0,2148,0]
["QT6","REF","ROYAL CORNWALL HOSPITALS NHS TRUST",1946,35203,0.94501541623843777,2.6207605344295993E-2,1584,255,52,27,24,4,1436,41,0,2,0,0,467,0]
["QU9","RXQ","BUCKINGHAMSHIRE HEALTHCARE NHS TRUST",1335,24655,0.92434456928838948,3.895131086142322E-2,1040,194,34,20,32,15,1132,0,0,0,0,203,0,0]
["QU9","RTH","OXFORD UNIVERSITY HOSPITALS NHS FOUNDATION TRUST",6235,65470,0.93809141940657581,3.0793905372894947E-2,5171,678,166,92,100,28,5817,0,0,0,37,0,381,0]
["QU9","RHW","ROYAL BERKSHIRE NHS FOUNDATION TRUST",3302,45118,0.95124167171411267,3.179890975166566E-2,2911,230,52,52,53,4,2954,0,0,347,0,0,1,0]
["QUA","RNA","THE DUDLEY GROUP NHS FOUNDATION TRUST",1340,33571,0.86567164179104472,2.8358208955223882E-2,1027,133,27,16,22,115,994,0,0,0,323,0,23,0]
["QUA","RL4","THE ROYAL WOLVERHAMPTON NHS TRUST",1518,48172,0.94137022397891967,3.5573122529644272E-2,1213,216,33,27,27,2,699,0,0,0,0,815,4,0]
["QUA","RBK","WALSALL HEALTHCARE NHS TRUST",2194,17582,0.91112123974475845,4.3755697356426621E-2,1687,312,80,37,59,19,1953,1,0,0,0,240,0,0]
["QUE","RGT","CAMBRIDGE UNIVERSITY HOSPITALS NHS FOUNDATION TRUST",4631,46172,0.93910602461671344,2.9367307277045996E-2,3752,597,141,77,59,5,4580,0,0,44,0,0,7,0]
["QUE","RGN","NORTH WEST ANGLIA NHS FOUNDATION TRUST",884,44621,0.96040723981900455,1.8099547511312219E-2,762,87,12,6,10,7,0,0,0,844,0,0,40,0]
["QUE","RGM","ROYAL PAPWORTH HOSPITAL NHS FOUNDATION TRUST",689,7020,0.96661828737300437,1.8867924528301886E-2,613,53,7,8,5,3,0,0,0,0,0,0,689,0]
["QUY","RVJ","NORTH BRISTOL NHS TRUST",4177,29498,0.95642805841513046,1.9152501795547044E-2,3512,483,83,52,28,19,2327,0,0,0,0,1850,0,0]
["QUY","RA7","UNIVERSITY HOSPITALS BRISTOL AND WESTON NHS FOUNDATION TRUST",2656,45086,0.9337349397590361,2.8237951807228916E-2,2124,356,46,38,37,55,2248,0,0,326,82,0,0,0]
["QVV","RBD","DORSET COUNTY HOSPITAL NHS FOUNDATION TRUST",1474,13608,0.93622795115332424,2.8493894165535955E-2,1191,189,30,15,27,22,1462,0,0,0,0,12,0,0]
["QVV","R0D","UNIVERSITY HOSPITALS DORSET NHS FOUNDATION TRUST",1865,"NA",0.95656836461126005,1.3941018766756031E-2,1532,252,32,10,16,23,1709,0,0,0,60,0,96,0]
["QWE","RJ6","CROYDON HEALTH SERVICES NHS TRUST",2962,27102,0.92977717758271439,3.3085752869682648E-2,2356,398,83,55,43,27,2962,0,0,0,0,0,0,0]
["QWE","RVR","EPSOM AND ST HELIER UNIVERSITY HOSPITALS NHS TRUST",1717,26531,0.94525334886429824,2.3878858474082703E-2,1414,209,45,17,24,8,1202,10,0,259,0,203,43,0]
["QWE","RAX","KINGSTON HOSPITAL NHS FOUNDATION TRUST",1938,25037,0.91021671826625383,4.9019607843137254E-2,1456,308,73,54,41,6,1018,8,0,0,0,885,27,0]
["QWE","RJ7","ST GEORGE'S UNIVERSITY HOSPITALS NHS FOUNDATION TRUST",2283,54913,0.92247043363994741,7.4901445466491454E-2,2089,17,1,3,168,5,0,33,0,129,0,0,2121,0]
["QWO","RCF","AIREDALE NHS FOUNDATION TRUST",1195,12925,0.93389121338912129,3.3472803347280332E-2,985,131,33,19,21,6,1132,0,0,0,0,0,63,0]
["QWO","RAE","BRADFORD TEACHING HOSPITALS NHS FOUNDATION TRUST",599,29225,0.95158597662771283,3.0050083472454091E-2,503,67,11,8,10,0,1,3,0,0,0,0,590,5]
["QWO","RWY","CALDERDALE AND HUDDERSFIELD NHS FOUNDATION TRUST",548,28902,0.93795620437956206,3.8321167883211681E-2,455,59,10,10,11,3,491,0,0,0,0,0,57,0]
["QWO","RR8","LEEDS TEACHING HOSPITALS NHS TRUST",2526,83342,0.93190815518606496,2.6524148851939825E-2,1918,436,88,26,41,17,793,1342,0,2,0,342,47,0]
["QWO","RXF","MID YORKSHIRE HOSPITALS NHS TRUST",2245,44403,0.94253897550111354,3.6080178173719377E-2,1880,236,46,33,48,2,1219,0,0,980,0,0,46,0]
["QWU","RLT","GEORGE ELIOT HOSPITAL NHS TRUST",2347,15894,0.93395824456753307,2.9825308904985089E-2,1784,408,55,31,39,30,2317,0,0,0,0,30,0,0]
["QWU","RJC","SOUTH WARWICKSHIRE UNIVERSITY NHS FOUNDATION TRUST",371,16377,0.95417789757412397,2.6954177897574125E-2,336,18,2,0,10,5,0,0,0,250,0,0,121,0]
["QWU","RKB","UNIVERSITY HOSPITALS COVENTRY AND WARWICKSHIRE NHS TRUST",2217,44522,0.93640054127198913,3.2476319350473612E-2,1786,290,56,32,40,13,1983,0,0,0,0,229,5,0]
["QXU","RTK","ASHFORD AND ST PETER'S HOSPITALS NHS FOUNDATION TRUST",2148,35574,0.83566108007448792,0.10288640595903166,1511,284,81,52,169,51,518,0,0,0,0,0,1630,0]
["QXU","RA2","ROYAL SURREY COUNTY HOSPITAL NHS FOUNDATION TRUST",46,22930,1,0,42,4,0,0,0,0,32,0,0,13,0,1,0,0]
["QXU","RTP","SURREY AND SUSSEX HEALTHCARE NHS TRUST",1410,24138,0.92269503546099296,4.5390070921985819E-2,1067,234,38,36,28,7,1326,0,0,38,0,14,32,0]
["QYG","RJN","EAST CHESHIRE NHS TRUST",1842,9270,0.95928338762214982,1.9543973941368076E-2,1592,175,34,12,24,5,1323,0,0,0,0,519,0,0]
["QYG","RBQ","LIVERPOOL HEART AND CHEST HOSPITAL NHS FOUNDATION TRUST",0,4847,"NA","NA",0,0,0,0,0,0,0,0,0,0,0,0,0,0]
["QYG","REM","LIVERPOOL UNIVERSITY HOSPITALS NHS FOUNDATION TRUST",9224,22019,0.93766261925411964,3.3716392020815264E-2,7752,897,202,130,181,62,8165,0,0,0,0,1059,0,0]
["QYG","REP","LIVERPOOL WOMEN'S NHS FOUNDATION TRUST",542,10607,0.93357933579335795,2.7675276752767528E-2,458,48,14,7,8,7,0,0,0,0,0,0,0,542]
["QYG","RBT","MID CHESHIRE HOSPITALS NHS FOUNDATION TRUST",2367,19007,0.94254330376003381,2.4503591043514999E-2,1962,269,64,30,28,14,1917,0,0,44,0,406,0,0]
["QYG","RVY","SOUTHPORT AND ORMSKIRK HOSPITAL NHS TRUST",2001,17794,0.94402798600699656,3.1484257871064465E-2,1655,234,41,28,35,8,1691,0,0,0,0,297,13,0]
["QYG","RBN","ST HELENS AND KNOWSLEY TEACHING HOSPITALS NHS TRUST",2593,32476,0.94639413806401851,2.6224450443501735E-2,2224,230,56,28,40,15,2101,0,0,162,0,245,85,0]
["QYG","REN","THE CLATTERBRIDGE CANCER CENTRE NHS FOUNDATION TRUST",2222,22486,0.97254725472547254,1.5751575157515751E-2,2012,149,22,16,19,4,2221,0,0,0,0,0,1,0]
["QYG","RET","THE WALTON CENTRE NHS FOUNDATION TRUST",339,8843,0.94985250737463123,1.4749262536873156E-2,290,32,6,1,4,6,0,0,0,0,0,0,339,0]
["QYG","RWW","WARRINGTON AND HALTON TEACHING HOSPITALS NHS FOUNDATION TRUST",2240,25005,0.9352678571428571,3.3928571428571426E-2,1836,259,54,37,39,15,1391,0,0,0,0,847,2,0]
["QYG","RBL","WIRRAL UNIVERSITY TEACHING HOSPITAL NHS FOUNDATION TRUST",4010,26031,0.94962593516209481,2.5685785536159602E-2,3419,389,80,42,61,19,3860,0,0,146,0,0,4,0]
["IS1","NT401","ALEXANDRA HOSPITAL",65,3094,1,0,62,3,0,0,0,0,0,0,0,65,0,0,0,0]
["IS1","NYW17","ASPEN HEALTHCARE - MIDLAND EYE",27,189,1,0,24,3,0,0,0,0,0,0,0,27,0,0,0,0]
["IS1","NT402","BATH CLINIC",69,597,1,0,69,0,0,0,0,0,0,0,0,69,0,0,0,0]
["IS1","NT403","BEARDWOOD HOSPITAL",8,2534,0.875,0,5,2,0,0,0,1,0,0,0,8,0,0,0,0]
["IS1","NT404","BEAUMONT HOSPITAL",9,2615,1,0,9,0,0,0,0,0,0,0,0,9,0,0,0,0]
["IS1","NWF01","BENENDEN HOSPITAL",58,"NA",0.93103448275862066,1.7241379310344827E-2,49,5,3,1,0,0,0,0,0,0,0,0,58,0]
["IS1","NT405","BISHOPS WOOD HOSPITAL",24,798,1,0,23,1,0,0,0,0,0,0,0,24,0,0,0,0]
["IS1","NT406","BLACKHEATH HOSPITAL",9,1244,1,0,7,2,0,0,0,0,0,0,0,9,0,0,0,0]
["IS1","NT451","CAVELL HOSPITAL",17,1013,1,0,12,5,0,0,0,0,0,0,0,17,0,0,0,0]
["IS1","NT408","CHAUCER HOSPITAL",32,886,1,0,31,1,0,0,0,0,0,0,0,32,0,0,0,0]
["IS1","NT409","CHELSFIELD PARK HOSPITAL",19,766,1,0,17,2,0,0,0,0,0,0,0,19,0,0,0,0]
["IS1","NT410","CHILTERN HOSPITAL",16,575,1,0,15,1,0,0,0,0,0,0,0,16,0,0,0,0]
["IS1","NT411","CLEMENTINE CHURCHILL HOSPITAL",15,2008,1,0,14,1,0,0,0,0,0,0,0,15,0,0,0,0]
["IS1","NNE","DORKING HEALTHCARE LIMITED (DHC)",45,2059,0.97777777777777775,0,40,4,1,0,0,0,0,0,0,6,2,0,37,0]
["IS1","NT412","DROITWICH SPA HOSPITAL",24,1365,1,0,23,1,0,0,0,0,0,0,0,24,0,0,0,0]
["IS1","NT447","DUCHY HOSPITAL",79,426,0.98734177215189878,0,73,5,0,0,0,1,0,0,0,79,0,0,0,0]
["IS1","NT445","EDGBASTON HOSPITAL",13,1429,1,0,13,0,0,0,0,0,0,0,0,11,0,0,2,0]
["IS1","ACM","EYE CARE MEDICAL LTD",0,"NA","NA","NA",0,0,0,0,0,0,0,0,0,0,0,0,0,0]
["IS1","NVG01","FAIRFIELD HOSPITAL",29,1872,1,0,25,4,0,0,0,0,0,0,0,29,0,0,0,0]
["IS1","NT417","GORING HALL HOSPITAL",20,1214,1,0,19,1,0,0,0,0,0,0,0,20,0,0,0,0]
["IS1","NT418","HAMPSHIRE CLINIC",38,1205,1,0,35,3,0,0,0,0,0,0,0,38,0,0,0,0]
["IS1","NT419","HARBOUR HOSPITAL",37,296,0.97297297297297303,0,35,1,1,0,0,0,0,0,0,37,0,0,0,0]
["IS1","NQT","HCRG CARE LTD",80,209,0.95,1.2500000000000001E-2,58,18,3,0,1,0,0,0,0,0,77,0,3,0]
["IS1","NDA","HCRG CARE SERVICES LTD",1,"NA","*","*","*","*","*","*","*","*","*","*","*","*","*","*","*","*"]
["IS1","NT416","HENDON HOSPITAL",6,1450,1,0,6,0,0,0,0,0,0,0,0,6,0,0,0,0]
["IS1","NT420","HIGHFIELD HOSPITAL",7,2049,1,0,7,0,0,0,0,0,0,0,0,7,0,0,0,0]
["IS1","NXM","HORDER HEALTHCARE",4,347,"*","*","*","*","*","*","*","*","*","*","*","*","*","*","*","*"]
["IS1","NT448","HUDDERSFIELD HOSPITAL",21,1779,1,0,20,1,0,0,0,0,0,0,0,20,0,0,1,0]
["IS1","NV1","INHEALTH LIMITED",6571,2798,0.96058438593821338,1.5674935321868817E-2,5539,773,118,50,53,38,0,0,0,0,0,0,6571,0]
["IS1","NCR","ISIGHT",12,553,1,0,12,0,0,0,0,0,0,0,0,0,12,0,0,0]
["IS1","ADP","KIMS HOSPITAL",51,3066,1,0,50,1,0,0,0,0,0,0,0,0,10,0,41,0]
["IS1","NT421","KINGS OAK HOSPITAL",11,1077,1,0,9,2,0,0,0,0,0,0,0,11,0,0,0,0]
["IS1","NT449","LANCASTER HOSPITAL",13,669,1,0,11,2,0,0,0,0,0,0,0,13,0,0,0,0]
["IS1","NT450","LINCOLN HOSPITAL",14,775,1,0,12,2,0,0,0,0,0,0,0,14,0,0,0,0]
["IS1","NT422","LONDON INDEPENDENT HOSPITAL",39,3370,0.94871794871794868,5.128205128205128E-2,35,2,0,1,1,0,0,0,0,39,0,0,0,0]
["IS1","NT423","MANOR HOSPITAL",0,459,"NA","NA",0,0,0,0,0,0,0,0,0,0,0,0,0,0]
["IS1","NT424","MERIDEN HOSPITAL",1,1867,"*","*","*","*","*","*","*","*","*","*","*","*","*","*","*","*"]
["IS1","NT455","MOUNT ALVERNIA HOSPITAL",62,1554,0.9838709677419355,0,60,1,1,0,0,0,0,0,0,61,0,0,1,0]
["IS1","ACG22","NEWMEDICA - BRIGG - RIVERSIDE SURGERY",111,"NA",0.99099099099099097,9.0090090090090089E-3,99,11,0,0,1,0,0,0,0,109,0,0,2,0]
["IS1","ACG20","NEWMEDICA - BRISTOL - LITFIELD HOUSE",93,"NA",0.989247311827957,0,80,12,1,0,0,0,0,0,0,93,0,0,0,0]
["IS1","Q1S8W","NEWMEDICA - BURY ST EDMUNDS",96,"NA",0.94791666666666663,2.0833333333333332E-2,68,23,3,0,2,0,0,0,0,96,0,0,0,0]
["IS1","ACG36","NEWMEDICA - EXETER - GLEN HOUSE",72,"NA",0.98611111111111116,1.3888888888888888E-2,62,9,0,0,1,0,0,0,0,72,0,0,0,0]
["IS1","ACG41","NEWMEDICA - FROME",52,"NA",0.96153846153846156,1.9230769230769232E-2,44,6,1,1,0,0,0,0,0,52,0,0,0,0]
["IS1","ACG13","NEWMEDICA - GLOUCESTER (ASPEN MEDICAL CENTRE)",57,"NA",1,0,49,8,0,0,0,0,0,0,0,57,0,0,0,0]
["IS1","L0D9W","NEWMEDICA - GLOUCESTER (BRIGHOUSE COURT)",97,"NA",0.98969072164948457,1.0309278350515464E-2,83,13,0,0,1,0,0,0,0,97,0,0,0,0]
["IS1","ACG37","NEWMEDICA - IPSWICH",175,"NA",1,0,162,13,0,0,0,0,0,0,0,164,0,0,11,0]
["IS1","ACG38","NEWMEDICA - LANGFORD",11,"NA",1,0,8,3,0,0,0,0,0,0,0,11,0,0,0,0]
["IS1","N6Z0R","NEWMEDICA - LINCOLN",0,"NA","NA","NA",0,0,0,0,0,0,0,0,0,0,0,0,0,0]
["IS1","ACG26","NEWMEDICA - NORTH DERBYSHIRE - MIDLAND COURT",541,"NA",0.99075785582255083,7.3937153419593345E-3,482,54,1,0,4,0,0,0,0,541,0,0,0,0]
["IS1","M4C5R","NEWMEDICA - NORTHAMPTON",311,"NA",0.99035369774919613,3.2154340836012861E-3,280,28,2,0,1,0,0,0,0,311,0,0,0,0]
["IS1","B5M7B","NEWMEDICA - NORWICH",64,"NA",1,0,62,2,0,0,0,0,0,0,0,64,0,0,0,0]
["IS1","J3J8Z","NEWMEDICA - OXFORDSHIRE",13,"NA",1,0,12,1,0,0,0,0,0,0,0,13,0,0,0,0]
["IS1","P5Y6K","NEWMEDICA - SHREWSBURY",75,"NA",1,0,73,2,0,0,0,0,0,0,0,75,0,0,0,0]
["IS1","ACG39","NEWMEDICA - SWINDON",54,"NA",0.96296296296296291,1.8518518518518517E-2,43,9,1,0,1,0,0,0,0,54,0,0,0,0]
["IS1","ACG24","NEWMEDICA - TEESSIDE - NORTH ORMESBY",44,"NA",1,0,43,1,0,0,0,0,0,0,0,44,0,0,0,0]
["IS1","ACG40","NEWMEDICA - WAKEFIELD",30,"NA",1,0,27,3,0,0,0,0,0,0,0,30,0,0,0,0]
["IS1","ACG31","NEWMEDICA - WORCESTER",79,"NA",1,0,69,10,0,0,0,0,0,0,0,79,0,0,0,0]
["IS1","ACG30","NEWMEDICA - WORKSOP - DUKERIES",74,"NA",0.98648648648648651,1.3513513513513514E-2,64,9,0,1,0,0,0,0,0,74,0,0,0,0]
["IS1","H4J9P","NEWMEDICA AZTEC WEST",69,"NA",0.95652173913043481,2.8985507246376812E-2,55,11,1,1,1,0,0,0,0,67,0,0,2,0]
["IS1","ACG19","NEWMEDICA COMMUNITY OPHTHALMOLOGY - LEEDS",90,"NA",0.97777777777777775,1.1111111111111112E-2,83,5,1,0,1,0,0,0,0,87,0,0,3,0]
["IS1","ACG07","NEWMEDICA COMMUNITY OPHTHALMOLOGY - LEICESTERSHIRE - LEICESTER (STONEYGATE EYE HOSPITAL)",68,"NA",1,0,64,4,0,0,0,0,0,0,0,67,0,0,1,0]
["IS1","ACG12","NEWMEDICA COMMUNITY OPHTHALMOLOGY - NORTH EAST LINCOLNSHIRE - GRIMSBY",107,"NA",0.95327102803738317,2.8037383177570093E-2,90,12,2,1,2,0,0,0,0,105,0,0,2,0]
["IS1","ACG08","NEWMEDICA OPHTHALMOLOGY - NUNEATON - CAMP HILL - GP LED HEALTH CENTRE",27,"NA",1,0,26,1,0,0,0,0,0,0,0,27,0,0,0,0]
["IS1","NT2","NUFFIELD HEALTH",7,7544,1,0,7,0,0,0,0,0,0,0,0,7,0,0,0,0]
["IS1","A9R4J","OPTIMAX - LEICESTER",19,"NA",1,0,17,2,0,0,0,0,0,0,0,19,0,0,0,0]
["IS1","U7W9J","OPTIMAX CLINICS LIMITED",48,"NA",1,0,44,4,0,0,0,0,0,0,0,0,48,0,0,0]
["IS1","NT427","PARK HOSPITAL",49,1211,1,0,45,4,0,0,0,0,0,0,0,49,0,0,0,0]
["IS1","NMN","PENINSULA HEALTH LLP",0,"NA","NA","NA",0,0,0,0,0,0,0,0,0,0,0,0,0,0]
["IS1","NEQ","PHOENIX HEALTH SOLUTIONS LIMITED HQ",21,"NA",0.95238095238095233,0,20,0,1,0,0,0,21,0,0,0,0,0,0,0]
["IS1","NEY","PIONEER HEALTHCARE LIMITED",76,179,0.81578947368421051,9.2105263157894732E-2,48,14,7,5,2,0,76,0,0,0,0,0,0,0]
["IS1","D3O0Z","PLYMOUTH NEWMEDICA LTD",126,"NA",0.98412698412698407,1.5873015873015872E-2,119,5,0,0,2,0,0,0,0,125,0,0,1,0]
["IS1","NTP13","PRACTICE PLUS GROUP HOSPITAL - BARLBOROUGH",317,943,0.96214511041009465,1.8927444794952682E-2,284,21,5,3,3,1,315,2,0,0,0,0,0,0]
["IS1","NTPH2","PRACTICE PLUS GROUP HOSPITAL - EMERSONS GREEN",48,1803,1,0,48,0,0,0,0,0,0,48,0,0,0,0,0,0]
["IS1","NTP15","PRACTICE PLUS GROUP HOSPITAL - ILFORD",883,1835,0.9977349943374858,0,756,125,2,0,0,0,0,0,883,0,0,0,0,0]
["IS1","NTPH5","PRACTICE PLUS GROUP HOSPITAL - PLYMOUTH",34,488,1,0,34,0,0,0,0,0,0,34,0,0,0,0,0,0]
["IS1","NTPH1","PRACTICE PLUS GROUP HOSPITAL - SHEPTON MALLET",111,1481,0.99099099099099097,0,110,0,1,0,0,0,0,111,0,0,0,0,0,0]
["IS1","NTP11","PRACTICE PLUS GROUP HOSPITAL - SOUTHAMPTON",292,3032,0.92123287671232879,3.4246575342465752E-2,233,36,13,5,5,0,0,292,0,0,0,0,0,0]
["IS1","NTPAE","PRACTICE PLUS GROUP OPHTHALMOLOGY - NORTH WEST",74,1690,0.98648648648648651,1.3513513513513514E-2,68,5,0,0,1,0,0,48,0,0,0,0,26,0]
["IS1","NTPAD","PRACTICE PLUS GROUP SURGICAL CENTRE - ST MARYS PORTSMOUTH",329,1747,1,0,307,22,0,0,0,0,0,0,329,0,0,0,0,0]
["IS1","NT428","PRINCESS MARGARET HOSPITAL",10,440,1,0,10,0,0,0,0,0,0,0,0,10,0,0,0,0]
["IS1","NT429","PRIORY HOSPITAL",38,920,1,0,37,1,0,0,0,0,0,0,0,31,0,0,7,0]
["IS1","NAM","PROBUS SURGERY LIMITED",24,"NA",1,0,24,0,0,0,0,0,24,0,0,0,0,0,0,0]
["IS1","NVC","RAMSAY HEALTHCARE UK OPERATIONS LIMITED",1396,77921,0.99068767908309452,9.3123209169054446E-3,1286,97,0,8,5,0,0,0,0,983,0,0,413,0]
["IS1","NT430","RIDGEWAY HOSPITAL",27,1069,1,0,26,1,0,0,0,0,0,0,0,27,0,0,0,0]
["IS1","NT431","RUNNYMEDE HOSPITAL",21,149,1,0,21,0,0,0,0,0,0,0,0,21,0,0,0,0]
["IS1","NT433","SARUM ROAD HOSPITAL",13,391,0.92307692307692313,0,12,0,1,0,0,0,0,0,0,13,0,0,0,0]
["IS1","NT434","SAXON CLINIC",43,632,0.97674418604651159,2.3255813953488372E-2,38,4,0,0,1,0,0,0,0,43,0,0,0,0]
["IS1","NT435","SHELBURNE HOSPITAL",0,101,"NA","NA",0,0,0,0,0,0,0,0,0,0,0,0,0,0]
["IS1","NT436","SHIRLEY OAKS HOSPITAL",8,1582,1,0,8,0,0,0,0,0,0,0,0,8,0,0,0,0]
["IS1","NT437","SLOANE HOSPITAL",18,579,1,0,13,5,0,0,0,0,0,0,0,18,0,0,0,0]
["IS1","NT490","SOUTHEND PRIVATE HOSPITAL",76,492,0.94736842105263153,0,66,6,1,0,0,3,0,0,0,76,0,0,0,0]
["IS1","NT446","ST EDMUNDS HOSPITAL",40,325,1,0,38,2,0,0,0,0,0,0,0,40,0,0,0,0]
["IS1","G3Z1Q","SULIS HOSPITAL BATH (FOXCOTE AVENUE)",78,"NA",0.97435897435897434,1.282051282051282E-2,74,2,1,0,1,0,0,0,0,78,0,0,0,0]
["IS1","AAH","TETBURY HOSPITAL TRUST LTD",1,"NA","*","*","*","*","*","*","*","*","*","*","*","*","*","*","*","*"]
["IS1","NT440","THORNBURY HOSPITAL",117,541,0.97435897435897434,1.7094017094017096E-2,92,22,0,0,2,1,0,0,0,117,0,0,0,0]
["IS1","NT441","THREE SHIRES HOSPITAL",29,2189,1,0,29,0,0,0,0,0,0,0,0,29,0,0,0,0]
["IS1","D1V8O","ULTRALASE EYE CLINICS LIMITED",0,"NA","NA","NA",0,0,0,0,0,0,0,0,0,0,0,0,0,0]
["IS1","NT443","WINTERBOURNE HOSPITAL",61,448,1,0,60,1,0,0,0,0,0,0,0,61,0,0,0,0]
["IS1","NT457","WOODLANDS HOSPITAL",17,2167,1,0,16,1,0,0,0,0,0,0,0,17,0,0,0,0]

{"sheet":"BS","index":4,"n_rows":235,"n_cols":24,"rows_kept":235,"cut":false,"hidden":true,"merged":[]}
[null,"Sort","Region (Local Office) code","Region (Local Office) name","Org code","Org name",null,"Sort Lists:","Sort range…","Sort range…","ICB Reference Lists:","Code…","Name…","ICB Linked Lists:","Code…","Name…","Orgs Reference List:","Code…","Code…","Name…",null,"Orgs Linked List:","Code…","Name…"]
["OP Region (Local Office)",1,1,1,"N/A","N/A",null,null,"ICB Code","ICB Code",null,"QE1","LANCASHIRE AND SOUTH CUMBRIA ICB",null,"QE1","LANCASHIRE AND SOUTH CUMBRIA ICB",null,"QE1","RXL","BLACKPOOL TEACHING HOSPITALS NHS FOUNDATION TRUST",null,null,"RXL","BLACKPOOL TEACHING HOSPITALS NHS FOUNDATION TRUST"]
["OP Orgs",1,1,1,1,1,null,null,"ICB Name","Org Code",null,"QF7","SOUTH YORKSHIRE ICB",null,"QF7","SOUTH YORKSHIRE ICB",null,"QE1","RXN","LANCASHIRE TEACHING HOSPITALS NHS FOUNDATION TRUST",null,null,"RXN","LANCASHIRE TEACHING HOSPITALS NHS FOUNDATION TRUST"]
[null,null,null,null,null,null,null,null,"Total Responses","Organisation Name",null,"QGH","HEREFORDSHIRE AND WORCESTERSHIRE ICB",null,"QGH","HEREFORDSHIRE AND WORCESTERSHIRE ICB",null,"QE1","RTX","UNIVERSITY HOSPITALS OF MORECAMBE BAY NHS FOUNDATION TRUST",null,null,"RTX","UNIVERSITY HOSPITALS OF MORECAMBE BAY NHS FOUNDATION TRUST"]
[null,null,null,null,null,null,null,null,"Total Eligible","Total Responses",null,"QH8","MID AND SOUTH ESSEX ICB",null,"QH8","MID AND SOUTH ESSEX ICB",null,"QF7","RFF","BARNSLEY HOSPITAL NHS FOUNDATION TRUST",null,null,"RFF","BARNSLEY HOSPITAL NHS FOUNDATION TRUST"]
[null,null,null,null,null,null,null,null,"Percentage Positive","Total Eligible",null,"QHG","BEDFORDSHIRE, LUTON AND MILTON KEYNES ICB",null,"QHG","BEDFORDSHIRE, LUTON AND MILTON KEYNES ICB",null,"QF7","RP5","DONCASTER AND BASSETLAW TEACHING HOSPITALS NHS FOUNDATION TRUST",null,null,"RP5","DONCASTER AND BASSETLAW TEACHING HOSPITALS NHS FOUNDATION TRUST"]
[null,null,null,null,null,null,null,null,"Percentage Negative","Percentage Positive",null,"QHL","BIRMINGHAM AND SOLIHULL ICB",null,"QHL","BIRMINGHAM AND SOLIHULL ICB",null,"QF7","RCU","SHEFFIELD CHILDREN'S NHS FOUNDATION TRUST",null,null,"RCU","SHEFFIELD CHILDREN'S NHS FOUNDATION TRUST"]
[null,null,null,null,null,null,null,null,"Very Good","Percentage Negative",null,"QHM","NORTH EAST AND NORTH CUMBRIA ICB",null,"QHM","NORTH EAST AND NORTH CUMBRIA ICB",null,"QF7","RHQ","SHEFFIELD TEACHING HOSPITALS NHS FOUNDATION TRUST",null,null,"RHQ","SHEFFIELD TEACHING HOSPITALS NHS FOUNDATION TRUST"]
[null,null,null,null,null,null,null,null,"Good","Very Good",null,"QJ2","DERBY AND DERBYSHIRE ICB",null,"QJ2","DERBY AND DERBYSHIRE ICB",null,"QF7","RFR","THE ROTHERHAM NHS FOUNDATION TRUST",null,null,"RFR","THE ROTHERHAM NHS FOUNDATION TRUST"]
[null,null,null,null,null,null,null,null,"Neither Good nor Poor","Good",null,"QJG","SUFFOLK AND NORTH EAST ESSEX ICB",null,"QJG","SUFFOLK AND NORTH EAST ESSEX ICB",null,"QGH","RWP","WORCESTERSHIRE ACUTE HOSPITALS NHS TRUST",null,null,"RWP","WORCESTERSHIRE ACUTE HOSPITALS NHS TRUST"]
[null,null,null,null,null,null,null,null,"Poor","Neither Good nor Poor",null,"QJK","DEVON ICB",null,"QJK","DEVON ICB",null,"QGH","RLQ","WYE VALLEY NHS TRUST",null,null,"RLQ","WYE VALLEY NHS TRUST"]
[null,null,null,null,null,null,null,null,"Very Poor","Poor",null,"QJM","LINCOLNSHIRE ICB",null,"QJM","LINCOLNSHIRE ICB",null,"QH8","RAJ","MID AND SOUTH ESSEX NHS FOUNDATION TRUST",null,null,"RAJ","MID AND SOUTH ESSEX NHS FOUNDATION TRUST"]
[null,null,null,null,null,null,null,null,"Don't Know","Very Poor",null,"QK1","LEICESTER, LEICESTERSHIRE AND RUTLAND ICB",null,"QK1","LEICESTER, LEICESTERSHIRE AND RUTLAND ICB",null,"QHG","RC9","BEDFORDSHIRE HOSPITALS NHS FOUNDATION TRUST",null,null,"RC9","BEDFORDSHIRE HOSPITALS NHS FOUNDATION TRUST"]
[null,null,null,null,null,null,null,null,null,"Don't Know",null,"QKK","SOUTH EAST LONDON ICB",null,"QKK","SOUTH EAST LONDON ICB",null,"QHG","RD8","MILTON KEYNES UNIVERSITY HOSPITAL NHS FOUNDATION TRUST",null,null,"RD8","MILTON KEYNES UNIVERSITY HOSPITAL NHS FOUNDATION TRUST"]
[null,null,null,null,null,null,null,null,null,"Mode SMS",null,"QKS","KENT AND MEDWAY ICB",null,"QKS","KENT AND MEDWAY ICB",null,"QHL","RQ3","BIRMINGHAM WOMEN'S AND CHILDREN'S NHS FOUNDATION TRUST",null,null,"RQ3","BIRMINGHAM WOMEN'S AND CHILDREN'S NHS FOUNDATION TRUST"]
[null,null,null,null,null,null,null,null,null,"Mode Electronic At Appointment",null,"QM7","HERTFORDSHIRE AND WEST ESSEX ICB",null,"QM7","HERTFORDSHIRE AND WEST ESSEX ICB",null,"QHL","RRK","UNIVERSITY HOSPITALS BIRMINGHAM NHS FOUNDATION TRUST",null,null,"RRK","UNIVERSITY HOSPITALS BIRMINGHAM NHS FOUNDATION TRUST"]
[null,null,null,null,null,null,null,null,null,"Mode Electronic After Appointment",null,"QMF","NORTH EAST LONDON ICB",null,"QMF","NORTH EAST LONDON ICB",null,"QHM","RXP","COUNTY DURHAM AND DARLINGTON NHS FOUNDATION TRUST",null,null,"RXP","COUNTY DURHAM AND DARLINGTON NHS FOUNDATION TRUST"]
[null,null,null,null,null,null,null,null,null,"Mode Paper At Appointment",null,"QMJ","NORTH CENTRAL LONDON ICB",null,"QMJ","NORTH CENTRAL LONDON ICB",null,"QHM","RR7","GATESHEAD HEALTH NHS FOUNDATION TRUST",null,null,"RR7","GATESHEAD HEALTH NHS FOUNDATION TRUST"]
[null,null,null,null,null,null,null,null,null,"Mode Paper After Appointment",null,"QMM","NORFOLK AND WAVENEY ICB",null,"QMM","NORFOLK AND WAVENEY ICB",null,"QHM","R7W2O","NEWCASTLE NEWMEDICA LTD",null,null,"R7W2O","NEWCASTLE NEWMEDICA LTD"]
[null,null,null,null,null,null,null,null,null,"Mode Telephone",null,"QNC","STAFFORDSHIRE AND STOKE-ON-TRENT ICB",null,"QNC","STAFFORDSHIRE AND STOKE-ON-TRENT ICB",null,"QHM","RNN","NORTH CUMBRIA INTEGRATED CARE NHS FOUNDATION TRUST",null,null,"RNN","NORTH CUMBRIA INTEGRATED CARE NHS FOUNDATION TRUST"]
[null,null,null,null,null,null,null,null,null,"Mode Online",null,"QNQ","FRIMLEY ICB",null,"QNQ","FRIMLEY ICB",null,"QHM","RVW","NORTH TEES AND HARTLEPOOL NHS FOUNDATION TRUST",null,null,"RVW","NORTH TEES AND HARTLEPOOL NHS FOUNDATION TRUST"]
[null,null,null,null,null,null,null,null,null,"Mode Other",null,"QNX","SUSSEX ICB",null,"QNX","SUSSEX ICB",null,"QHM","RTF","NORTHUMBRIA HEALTHCARE NHS FOUNDATION TRUST",null,null,"RTF","NORTHUMBRIA HEALTHCARE NHS FOUNDATION TRUST"]
[null,null,null,null,null,null,null,null,null,null,null,"QOC","SHROPSHIRE, TELFORD AND WREKIN ICB",null,"QOC","SHROPSHIRE, TELFORD AND WREKIN ICB",null,"QHM","RTR","SOUTH TEES HOSPITALS NHS FOUNDATION TRUST",null,null,"RTR","SOUTH TEES HOSPITALS NHS FOUNDATION TRUST"]
[null,null,null,null,null,null,null,null,null,null,null,"QOP","GREATER MANCHESTER ICB",null,"QOP","GREATER MANCHESTER ICB",null,"QHM","R0B","SOUTH TYNESIDE AND SUNDERLAND NHS FOUNDATION TRUST",null,null,"R0B","SOUTH TYNESIDE AND SUNDERLAND NHS FOUNDATION TRUST"]
[null,null,null,null,null,null,null,null,null,null,null,"QOQ","HUMBER AND NORTH YORKSHIRE ICB",null,"QOQ","HUMBER AND NORTH YORKSHIRE ICB",null,"QHM","RTD","THE NEWCASTLE UPON TYNE HOSPITALS NHS FOUNDATION TRUST",null,null,"RTD","THE NEWCASTLE UPON TYNE HOSPITALS NHS FOUNDATION TRUST"]
[null,null,null,null,null,null,null,null,null,null,null,"QOX","BATH AND NORTH EAST SOMERSET, SWINDON AND WILTSHIRE ICB",null,"QOX","BATH AND NORTH EAST SOMERSET, SWINDON AND WILTSHIRE ICB",null,"QJ2","RFS","CHESTERFIELD ROYAL HOSPITAL NHS FOUNDATION TRUST",null,null,"RFS","CHESTERFIELD ROYAL HOSPITAL NHS FOUNDATION TRUST"]
[null,null,null,null,null,null,null,null,null,null,null,"QPM","NORTHAMPTONSHIRE ICB",null,"QPM","NORTHAMPTONSHIRE ICB",null,"QJ2","RTG","UNIVERSITY HOSPITALS OF DERBY AND BURTON NHS FOUNDATION TRUST",null,null,"RTG","UNIVERSITY HOSPITALS OF DERBY AND BURTON NHS FOUNDATION TRUST"]
[null,null,null,null,null,null,null,null,null,null,null,"QR1","GLOUCESTERSHIRE ICB",null,"QR1","GLOUCESTERSHIRE ICB",null,"QJG","RDE","EAST SUFFOLK AND NORTH ESSEX NHS FOUNDATION TRUST",null,null,"RDE","EAST SUFFOLK AND NORTH ESSEX NHS FOUNDATION TRUST"]
[null,null,null,null,null,null,null,null,null,null,null,"QRL","HAMPSHIRE AND ISLE OF WIGHT ICB",null,"QRL","HAMPSHIRE AND ISLE OF WIGHT ICB",null,"QJG","RGR","WEST SUFFOLK NHS FOUNDATION TRUST",null,null,"RGR","WEST SUFFOLK NHS FOUNDATION TRUST"]
[null,null,null,null,null,null,null,null,null,null,null,"QRV","NORTH WEST LONDON ICB",null,"QRV","NORTH WEST LONDON ICB",null,"QJK","R5J2A","OPTIMAX - NEWTON ABBOT",null,null,"R5J2A","OPTIMAX - NEWTON ABBOT"]
[null,null,null,null,null,null,null,null,null,null,null,"QSL","SOMERSET ICB",null,"QSL","SOMERSET ICB",null,"QJK","RH8","ROYAL DEVON UNIVERSITY HEALTHCARE NHS FOUNDATION TRUST",null,null,"RH8","ROYAL DEVON UNIVERSITY HEALTHCARE NHS FOUNDATION TRUST"]
[null,null,null,null,null,null,null,null,null,null,null,"QT1","NOTTINGHAM AND NOTTINGHAMSHIRE ICB",null,"QT1","NOTTINGHAM AND NOTTINGHAMSHIRE ICB",null,"QJK","RA9","TORBAY AND SOUTH DEVON NHS FOUNDATION TRUST",null,null,"RA9","TORBAY AND SOUTH DEVON NHS FOUNDATION TRUST"]
[null,null,null,null,null,null,null,null,null,null,null,"QT6","CORNWALL AND THE ISLES OF SCILLY ICB",null,"QT6","CORNWALL AND THE ISLES OF SCILLY ICB",null,"QJK","RK9","UNIVERSITY HOSPITALS PLYMOUTH NHS TRUST",null,null,"RK9","UNIVERSITY HOSPITALS PLYMOUTH NHS TRUST"]
[null,null,null,null,null,null,null,null,null,null,null,"QU9","BUCKINGHAMSHIRE, OXFORDSHIRE AND BERKSHIRE WEST ICB",null,"QU9","BUCKINGHAMSHIRE, OXFORDSHIRE AND BERKSHIRE WEST ICB",null,"QJM","RWD","UNITED LINCOLNSHIRE HOSPITALS NHS TRUST",null,null,"RWD","UNITED LINCOLNSHIRE HOSPITALS NHS TRUST"]
[null,null,null,null,null,null,null,null,null,null,null,"QUA","BLACK COUNTRY ICB",null,"QUA","BLACK COUNTRY ICB",null,"QK1","RWE","UNIVERSITY HOSPITALS OF LEICESTER NHS TRUST",null,null,"RWE","UNIVERSITY HOSPITALS OF LEICESTER NHS TRUST"]
[null,null,null,null,null,null,null,null,null,null,null,"QUE","CAMBRIDGESHIRE AND PETERBOROUGH ICB",null,"QUE","CAMBRIDGESHIRE AND PETERBOROUGH ICB",null,"QKK","RJ1","GUY'S AND ST THOMAS' NHS FOUNDATION TRUST",null,null,"RJ1","GUY'S AND ST THOMAS' NHS FOUNDATION TRUST"]
[null,null,null,null,null,null,null,null,null,null,null,"QUY","BRISTOL, NORTH SOMERSET AND SOUTH GLOUCESTERSHIRE ICB",null,"QUY","BRISTOL, NORTH SOMERSET AND SOUTH GLOUCESTERSHIRE ICB",null,"QKK","RJZ","KING'S COLLEGE HOSPITAL NHS FOUNDATION TRUST",null,null,"RJZ","KING'S COLLEGE HOSPITAL NHS FOUNDATION TRUST"]
[null,null,null,null,null,null,null,null,null,null,null,"QVV","DORSET ICB",null,"QVV","DORSET ICB",null,"QKK","RJ2","LEWISHAM AND GREENWICH NHS TRUST",null,null,"RJ2","LEWISHAM AND GREENWICH NHS TRUST"]
[null,null,null,null,null,null,null,null,null,null,null,"QWE","SOUTH WEST LONDON ICB",null,"QWE","SOUTH WEST LONDON ICB",null,"QKS","RN7","DARTFORD AND GRAVESHAM NHS TRUST",null,null,"RN7","DARTFORD AND GRAVESHAM NHS TRUST"]
[null,null,null,null,null,null,null,null,null,null,null,"QWO","WEST YORKSHIRE ICB",null,"QWO","WEST YORKSHIRE ICB",null,"QKS","RVV","EAST KENT HOSPITALS UNIVERSITY NHS FOUNDATION TRUST",null,null,"RVV","EAST KENT HOSPITALS UNIVERSITY NHS FOUNDATION TRUST"]
[null,null,null,null,null,null,null,null,null,null,null,"QWU","COVENTRY AND WARWICKSHIRE ICB",null,"QWU","COVENTRY AND WARWICKSHIRE ICB",null,"QKS","RWF","MAIDSTONE AND TUNBRIDGE WELLS NHS TRUST",null,null,"RWF","MAIDSTONE AND TUNBRIDGE WELLS NHS TRUST"]
[null,null,null,null,null,null,null,null,null,null,null,"QXU","SURREY HEARTLANDS ICB",null,"QXU","SURREY HEARTLANDS ICB",null,"QKS","RPA","MEDWAY NHS FOUNDATION TRUST",null,null,"RPA","MEDWAY NHS FOUNDATION TRUST"]
[null,null,null,null,null,null,null,null,null,null,null,"QYG","CHESHIRE AND MERSEYSIDE ICB",null,"QYG","CHESHIRE AND MERSEYSIDE ICB",null,"QM7","RWH","EAST AND NORTH HERTFORDSHIRE NHS TRUST",null,null,"RWH","EAST AND NORTH HERTFORDSHIRE NHS TRUST"]
[null,null,null,null,null,null,null,null,null,null,null,"zIS1","INDEPENDENT SECTOR PROVIDERS",null,"zIS1","INDEPENDENT SECTOR PROVIDERS",null,"QM7","RQW","THE PRINCESS ALEXANDRA HOSPITAL NHS TRUST",null,null,"RQW","THE PRINCESS ALEXANDRA HOSPITAL NHS TRUST"]
[null,null,null,null,null,null,null,null,null,null,null,null,null,null,null,null,null,"QM7","RWG","WEST HERTFORDSHIRE TEACHING HOSPITALS NHS TRUST",null,null,"RWG","WEST HERTFORDSHIRE TEACHING HOSPITALS NHS TRUST"]
[null,null,null,null,null,null,null,null,null,null,null,null,null,null,null,null,null,"QMF","RF4","BARKING, HAVERING AND REDBRIDGE UNIVERSITY HOSPITALS NHS TRUST",null,null,"RF4","BARKING, HAVERING AND REDBRIDGE UNIVERSITY HOSPITALS NHS TRUST"]
[null,null,null,null,null,null,null,null,null,null,null,null,null,null,null,null,null,"QMF","R1H","BARTS HEALTH NHS TRUST",null,null,"R1H","BARTS HEALTH NHS TRUST"]
[null,null,null,null,null,null,null,null,null,null,null,null,null,null,null,null,null,"QMF","RQX","HOMERTON HEALTHCARE NHS FOUNDATION TRUST",null,null,"RQX","HOMERTON HEALTHCARE NHS FOUNDATION TRUST"]
[null,null,null,null,null,null,null,null,null,null,null,null,null,null,null,null,null,"QMJ","RP4","GREAT ORMOND STREET HOSPITAL FOR CHILDREN NHS FOUNDATION TRUST",null,null,"RP4","GREAT ORMOND STREET HOSPITAL FOR CHILDREN NHS FOUNDATION TRUST"]
[null,null,null,null,null,null,null,null,null,null,null,null,null,null,null,null,null,"QMJ","RP6","MOORFIELDS EYE HOSPITAL NHS FOUNDATION TRUST",null,null,"RP6","MOORFIELDS EYE HOSPITAL NHS FOUNDATION TRUST"]
[null,null,null,null,null,null,null,null,null,null,null,null,null,null,null,null,null,"QMJ","RAP","NORTH MIDDLESEX UNIVERSITY HOSPITAL NHS TRUST",null,null,"RAP","NORTH MIDDLESEX UNIVERSITY HOSPITAL NHS TRUST"]
[null,null,null,null,null,null,null,null,null,null,null,null,null,null,null,null,null,"QMJ","RAL","ROYAL FREE LONDON NHS FOUNDATION TRUST",null,null,"RAL","ROYAL FREE LONDON NHS FOUNDATION TRUST"]
[null,null,null,null,null,null,null,null,null,null,null,null,null,null,null,null,null,"QMJ","RRV","UNIVERSITY COLLEGE LONDON HOSPITALS NHS FOUNDATION TRUST",null,null,"RRV","UNIVERSITY COLLEGE LONDON HOSPITALS NHS FOUNDATION TRUST"]
[null,null,null,null,null,null,null,null,null,null,null,null,null,null,null,null,null,"QMJ","RKE","WHITTINGTON HEALTH NHS TRUST",null,null,"RKE","WHITTINGTON HEALTH NHS TRUST"]
[null,null,null,null,null,null,null,null,null,null,null,null,null,null,null,null,null,"QMM","RGP","JAMES PAGET UNIVERSITY HOSPITALS NHS FOUNDATION TRUST",null,null,"RGP","JAMES PAGET UNIVERSITY HOSPITALS NHS FOUNDATION TRUST"]
[null,null,null,null,null,null,null,null,null,null,null,null,null,null,null,null,null,"QMM","RM1","NORFOLK AND NORWICH UNIVERSITY HOSPITALS NHS FOUNDATION TRUST",null,null,"RM1","NORFOLK AND NORWICH UNIVERSITY HOSPITALS NHS FOUNDATION TRUST"]
[null,null,null,null,null,null,null,null,null,null,null,null,null,null,null,null,null,"QMM","RCX","THE QUEEN ELIZABETH HOSPITAL, KING'S LYNN, NHS FOUNDATION TRUST",null,null,"RCX","THE QUEEN ELIZABETH HOSPITAL, KING'S LYNN, NHS FOUNDATION TRUST"]
[null,null,null,null,null,null,null,null,null,null,null,null,null,null,null,null,null,"QNC","RRE","MIDLANDS PARTNERSHIP NHS FOUNDATION TRUST",null,null,"RRE","MIDLANDS PARTNERSHIP NHS FOUNDATION TRUST"]
[null,null,null,null,null,null,null,null,null,null,null,null,null,null,null,null,null,"QNC","RJE","UNIVERSITY HOSPITALS OF NORTH MIDLANDS NHS TRUST",null,null,"RJE","UNIVERSITY HOSPITALS OF NORTH MIDLANDS NHS TRUST"]
[null,null,null,null,null,null,null,null,null,null,null,null,null,null,null,null,null,"QNQ","RDU","FRIMLEY HEALTH NHS FOUNDATION TRUST",null,null,"RDU","FRIMLEY HEALTH NHS FOUNDATION TRUST"]
[null,null,null,null,null,null,null,null,null,null,null,null,null,null,null,null,null,"QNX","RXC","EAST SUSSEX HEALTHCARE NHS TRUST",null,null,"RXC","EAST SUSSEX HEALTHCARE NHS TRUST"]
[null,null,null,null,null,null,null,null,null,null,null,null,null,null,null,null,null,"QNX","RPC","QUEEN VICTORIA HOSPITAL NHS FOUNDATION TRUST",null,null,"RPC","QUEEN VICTORIA HOSPITAL NHS FOUNDATION TRUST"]
[null,null,null,null,null,null,null,null,null,null,null,null,null,null,null,null,null,"QNX","RYR","UNIVERSITY HOSPITALS SUSSEX NHS FOUNDATION TRUST",null,null,"RYR","UNIVERSITY HOSPITALS SUSSEX NHS FOUNDATION TRUST"]
[null,null,null,null,null,null,null,null,null,null,null,null,null,null,null,null,null,"QOC","RL1","THE ROBERT JONES AND AGNES HUNT ORTHOPAEDIC HOSPITAL NHS FOUNDATION TRUST",null,null,"RL1","THE ROBERT JONES AND AGNES HUNT ORTHOPAEDIC HOSPITAL NHS FOUNDATION TRUST"]
[null,null,null,null,null,null,null,null,null,null,null,null,null,null,null,null,null,"QOC","RXW","THE SHREWSBURY AND TELFORD HOSPITAL NHS TRUST",null,null,"RXW","THE SHREWSBURY AND TELFORD HOSPITAL NHS TRUST"]
[null,null,null,null,null,null,null,null,null,null,null,null,null,null,null,null,null,"QOP","RMC","BOLTON NHS FOUNDATION TRUST",null,null,"RMC","BOLTON NHS FOUNDATION TRUST"]
[null,null,null,null,null,null,null,null,null,null,null,null,null,null,null,null,null,"QOP","R0A","MANCHESTER UNIVERSITY NHS FOUNDATION TRUST",null,null,"R0A","MANCHESTER UNIVERSITY NHS FOUNDATION TRUST"]
[null,null,null,null,null,null,null,null,null,null,null,null,null,null,null,null,null,"QOP","RM3","NORTHERN CARE ALLIANCE NHS FOUNDATION TRUST",null,null,"RM3","NORTHERN CARE ALLIANCE NHS FOUNDATION TRUST"]
[null,null,null,null,null,null,null,null,null,null,null,null,null,null,null,null,null,"QOP","RWJ","STOCKPORT NHS FOUNDATION TRUST",null,null,"RWJ","STOCKPORT NHS FOUNDATION TRUST"]
[null,null,null,null,null,null,null,null,null,null,null,null,null,null,null,null,null,"QOP","RMP","TAMESIDE AND GLOSSOP INTEGRATED CARE NHS FOUNDATION TRUST",null,null,"RMP","TAMESIDE AND GLOSSOP INTEGRATED CARE NHS FOUNDATION TRUST"]
[null,null,null,null,null,null,null,null,null,null,null,null,null,null,null,null,null,"QOP","RBV","THE CHRISTIE NHS FOUNDATION TRUST",null,null,"RBV","THE CHRISTIE NHS FOUNDATION TRUST"]
[null,null,null,null,null,null,null,null,null,null,null,null,null,null,null,null,null,"QOP","RRF","WRIGHTINGTON, WIGAN AND LEIGH NHS FOUNDATION TRUST",null,null,"RRF","WRIGHTINGTON, WIGAN AND LEIGH NHS FOUNDATION TRUST"]
[null,null,null,null,null,null,null,null,null,null,null,null,null,null,null,null,null,"QOQ","RCD","HARROGATE AND DISTRICT NHS FOUNDATION TRUST",null,null,"RCD","HARROGATE AND DISTRICT NHS FOUNDATION TRUST"]
[null,null,null,null,null,null,null,null,null,null,null,null,null,null,null,null,null,"QOQ","RWA","HULL UNIVERSITY TEACHING HOSPITALS NHS TRUST",null,null,"RWA","HULL UNIVERSITY TEACHING HOSPITALS NHS TRUST"]
[null,null,null,null,null,null,null,null,null,null,null,null,null,null,null,null,null,"QOQ","RJL","NORTHERN LINCOLNSHIRE AND GOOLE NHS FOUNDATION TRUST",null,null,"RJL","NORTHERN LINCOLNSHIRE AND GOOLE NHS FOUNDATION TRUST"]
[null,null,null,null,null,null,null,null,null,null,null,null,null,null,null,null,null,"QOQ","RCB","YORK AND SCARBOROUGH TEACHING HOSPITALS NHS FOUNDATION TRUST",null,null,"RCB","YORK AND SCARBOROUGH TEACHING HOSPITALS NHS FOUNDATION TRUST"]
[null,null,null,null,null,null,null,null,null,null,null,null,null,null,null,null,null,"QOX","RN3","GREAT WESTERN HOSPITALS NHS FOUNDATION TRUST",null,null,"RN3","GREAT WESTERN HOSPITALS NHS FOUNDATION TRUST"]
[null,null,null,null,null,null,null,null,null,null,null,null,null,null,null,null,null,"QOX","RD1","ROYAL UNITED HOSPITALS BATH NHS FOUNDATION TRUST",null,null,"RD1","ROYAL UNITED HOSPITALS BATH NHS FOUNDATION TRUST"]
[null,null,null,null,null,null,null,null,null,null,null,null,null,null,null,null,null,"QOX","RNZ","SALISBURY NHS FOUNDATION TRUST",null,null,"RNZ","SALISBURY NHS FOUNDATION TRUST"]
[null,null,null,null,null,null,null,null,null,null,null,null,null,null,null,null,null,"QPM","RNQ","KETTERING GENERAL HOSPITAL NHS FOUNDATION TRUST",null,null,"RNQ","KETTERING GENERAL HOSPITAL NHS FOUNDATION TRUST"]
[null,null,null,null,null,null,null,null,null,null,null,null,null,null,null,null,null,"QPM","RNS","NORTHAMPTON GENERAL HOSPITAL NHS TRUST",null,null,"RNS","NORTHAMPTON GENERAL HOSPITAL NHS TRUST"]
[null,null,null,null,null,null,null,null,null,null,null,null,null,null,null,null,null,"QR1","RTE","GLOUCESTERSHIRE HOSPITALS NHS FOUNDATION TRUST",null,null,"RTE","GLOUCESTERSHIRE HOSPITALS NHS FOUNDATION TRUST"]
[null,null,null,null,null,null,null,null,null,null,null,null,null,null,null,null,null,"QRL","RN5","HAMPSHIRE HOSPITALS NHS FOUNDATION TRUST",null,null,"RN5","HAMPSHIRE HOSPITALS NHS FOUNDATION TRUST"]
[null,null,null,null,null,null,null,null,null,null,null,null,null,null,null,null,null,"QRL","R1F","ISLE OF WIGHT NHS TRUST",null,null,"R1F","ISLE OF WIGHT NHS TRUST"]
[null,null,null,null,null,null,null,null,null,null,null,null,null,null,null,null,null,"QRL","RHU","PORTSMOUTH HOSPITALS UNIVERSITY NATIONAL HEALTH SERVICE TRUST",null,null,"RHU","PORTSMOUTH HOSPITALS UNIVERSITY NATIONAL HEALTH SERVICE TRUST"]
[null,null,null,null,null,null,null,null,null,null,null,null,null,null,null,null,null,"QRL","RHM","UNIVERSITY HOSPITAL SOUTHAMPTON NHS FOUNDATION TRUST",null,null,"RHM","UNIVERSITY HOSPITAL SOUTHAMPTON NHS FOUNDATION TRUST"]
[null,null,null,null,null,null,null,null,null,null,null,null,null,null,null,null,null,"QRV","RQM","CHELSEA AND WESTMINSTER HOSPITAL NHS FOUNDATION TRUST",null,null,"RQM","CHELSEA AND WESTMINSTER HOSPITAL NHS FOUNDATION TRUST"]
[null,null,null,null,null,null,null,null,null,null,null,null,null,null,null,null,null,"QRV","RYJ","IMPERIAL COLLEGE HEALTHCARE NHS TRUST",null,null,"RYJ","IMPERIAL COLLEGE HEALTHCARE NHS TRUST"]
[null,null,null,null,null,null,null,null,null,null,null,null,null,null,null,null,null,"QRV","R1K","LONDON NORTH WEST UNIVERSITY HEALTHCARE NHS TRUST",null,null,"R1K","LONDON NORTH WEST UNIVERSITY HEALTHCARE NHS TRUST"]
[null,null,null,null,null,null,null,null,null,null,null,null,null,null,null,null,null,"QRV","RAN","ROYAL NATIONAL ORTHOPAEDIC HOSPITAL NHS TRUST",null,null,"RAN","ROYAL NATIONAL ORTHOPAEDIC HOSPITAL NHS TRUST"]
[null,null,null,null,null,null,null,null,null,null,null,null,null,null,null,null,null,"QRV","RAS","THE HILLINGDON HOSPITALS NHS FOUNDATION TRUST",null,null,"RAS","THE HILLINGDON HOSPITALS NHS FOUNDATION TRUST"]
[null,null,null,null,null,null,null,null,null,null,null,null,null,null,null,null,null,"QRV","RPY","THE ROYAL MARSDEN NHS FOUNDATION TRUST",null,null,"RPY","THE ROYAL MARSDEN NHS FOUNDATION TRUST"]
[null,null,null,null,null,null,null,null,null,null,null,null,null,null,null,null,null,"QSL","RH5","SOMERSET NHS FOUNDATION TRUST",null,null,"RH5","SOMERSET NHS FOUNDATION TRUST"]
[null,null,null,null,null,null,null,null,null,null,null,null,null,null,null,null,null,"QSL","RA4","YEOVIL DISTRICT HOSPITAL NHS FOUNDATION TRUST",null,null,"RA4","YEOVIL DISTRICT HOSPITAL NHS FOUNDATION TRUST"]
[null,null,null,null,null,null,null,null,null,null,null,null,null,null,null,null,null,"QT1","RX1","NOTTINGHAM UNIVERSITY HOSPITALS NHS TRUST",null,null,"RX1","NOTTINGHAM UNIVERSITY HOSPITALS NHS TRUST"]
[null,null,null,null,null,null,null,null,null,null,null,null,null,null,null,null,null,"QT1","RK5","SHERWOOD FOREST HOSPITALS NHS FOUNDATION TRUST",null,null,"RK5","SHERWOOD FOREST HOSPITALS NHS FOUNDATION TRUST"]
[null,null,null,null,null,null,null,null,null,null,null,null,null,null,null,null,null,"QT6","REF","ROYAL CORNWALL HOSPITALS NHS TRUST",null,null,"REF","ROYAL CORNWALL HOSPITALS NHS TRUST"]
[null,null,null,null,null,null,null,null,null,null,null,null,null,null,null,null,null,"QU9","RXQ","BUCKINGHAMSHIRE HEALTHCARE NHS TRUST",null,null,"RXQ","BUCKINGHAMSHIRE HEALTHCARE NHS TRUST"]
[null,null,null,null,null,null,null,null,null,null,null,null,null,null,null,null,null,"QU9","RTH","OXFORD UNIVERSITY HOSPITALS NHS FOUNDATION TRUST",null,null,"RTH","OXFORD UNIVERSITY HOSPITALS NHS FOUNDATION TRUST"]
[null,null,null,null,null,null,null,null,null,null,null,null,null,null,null,null,null,"QU9","RHW","ROYAL BERKSHIRE NHS FOUNDATION TRUST",null,null,"RHW","ROYAL BERKSHIRE NHS FOUNDATION TRUST"]
[null,null,null,null,null,null,null,null,null,null,null,null,null,null,null,null,null,"QUA","RNA","THE DUDLEY GROUP NHS FOUNDATION TRUST",null,null,"RNA","THE DUDLEY GROUP NHS FOUNDATION TRUST"]
[null,null,null,null,null,null,null,null,null,null,null,null,null,null,null,null,null,"QUA","RL4","THE ROYAL WOLVERHAMPTON NHS TRUST",null,null,"RL4","THE ROYAL WOLVERHAMPTON NHS TRUST"]
[null,null,null,null,null,null,null,null,null,null,null,null,null,null,null,null,null,"QUA","RBK","WALSALL HEALTHCARE NHS TRUST",null,null,"RBK","WALSALL HEALTHCARE NHS TRUST"]
[null,null,null,null,null,null,null,null,null,null,null,null,null,null,null,null,null,"QUE","RGT","CAMBRIDGE UNIVERSITY HOSPITALS NHS FOUNDATION TRUST",null,null,"RGT","CAMBRIDGE UNIVERSITY HOSPITALS NHS FOUNDATION TRUST"]
[null,null,null,null,null,null,null,null,null,null,null,null,null,null,null,null,null,"QUE","RGN","NORTH WEST ANGLIA NHS FOUNDATION TRUST",null,null,"RGN","NORTH WEST ANGLIA NHS FOUNDATION TRUST"]
[null,null,null,null,null,null,null,null,null,null,null,null,null,null,null,null,null,"QUE","RGM","ROYAL PAPWORTH HOSPITAL NHS FOUNDATION TRUST",null,null,"RGM","ROYAL PAPWORTH HOSPITAL NHS FOUNDATION TRUST"]
[null,null,null,null,null,null,null,null,null,null,null,null,null,null,null,null,null,"QUY","RVJ","NORTH BRISTOL NHS TRUST",null,null,"RVJ","NORTH BRISTOL NHS TRUST"]
[null,null,null,null,null,null,null,null,null,null,null,null,null,null,null,null,null,"QUY","RA7","UNIVERSITY HOSPITALS BRISTOL AND WESTON NHS FOUNDATION TRUST",null,null,"RA7","UNIVERSITY HOSPITALS BRISTOL AND WESTON NHS FOUNDATION TRUST"]
[null,null,null,null,null,null,null,null,null,null,null,null,null,null,null,null,null,"QVV","RBD","DORSET COUNTY HOSPITAL NHS FOUNDATION TRUST",null,null,"RBD","DORSET COUNTY HOSPITAL NHS FOUNDATION TRUST"]
[null,null,null,null,null,null,null,null,null,null,null,null,null,null,null,null,null,"QVV","R0D","UNIVERSITY HOSPITALS DORSET NHS FOUNDATION TRUST",null,null,"R0D","UNIVERSITY HOSPITALS DORSET NHS FOUNDATION TRUST"]
[null,null,null,null,null,null,null,null,null,null,null,null,null,null,null,null,null,"QWE","RJ6","CROYDON HEALTH SERVICES NHS TRUST",null,null,"RJ6","CROYDON HEALTH SERVICES NHS TRUST"]
[null,null,null,null,null,null,null,null,null,null,null,null,null,null,null,null,null,"QWE","RVR","EPSOM AND ST HELIER UNIVERSITY HOSPITALS NHS TRUST",null,null,"RVR","EPSOM AND ST HELIER UNIVERSITY HOSPITALS NHS TRUST"]
[null,null,null,null,null,null,null,null,null,null,null,null,null,null,null,null,null,"QWE","RAX","KINGSTON HOSPITAL NHS FOUNDATION TRUST",null,null,"RAX","KINGSTON HOSPITAL NHS FOUNDATION TRUST"]
[null,null,null,null,null,null,null,null,null,null,null,null,null,null,null,null,null,"QWE","RJ7","ST GEORGE'S UNIVERSITY HOSPITALS NHS FOUNDATION TRUST",null,null,"RJ7","ST GEORGE'S UNIVERSITY HOSPITALS NHS FOUNDATION TRUST"]
[null,null,null,null,null,null,null,null,null,null,null,null,null,null,null,null,null,"QWO","RCF","AIREDALE NHS FOUNDATION TRUST",null,null,"RCF","AIREDALE NHS FOUNDATION TRUST"]
[null,null,null,null,null,null,null,null,null,null,null,null,null,null,null,null,null,"QWO","RAE","BRADFORD TEACHING HOSPITALS NHS FOUNDATION TRUST",null,null,"RAE","BRADFORD TEACHING HOSPITALS NHS FOUNDATION TRUST"]
[null,null,null,null,null,null,null,null,null,null,null,null,null,null,null,null,null,"QWO","RWY","CALDERDALE AND HUDDERSFIELD NHS FOUNDATION TRUST",null,null,"RWY","CALDERDALE AND HUDDERSFIELD NHS FOUNDATION TRUST"]
[null,null,null,null,null,null,null,null,null,null,null,null,null,null,null,null,null,"QWO","RR8","LEEDS TEACHING HOSPITALS NHS TRUST",null,null,"RR8","LEEDS TEACHING HOSPITALS NHS TRUST"]
[null,null,null,null,null,null,null,null,null,null,null,null,null,null,null,null,null,"QWO","RXF","MID YORKSHIRE HOSPITALS NHS TRUST",null,null,"RXF","MID YORKSHIRE HOSPITALS NHS TRUST"]
[null,null,null,null,null,null,null,null,null,null,null,null,null,null,null,null,null,"QWU","RLT","GEORGE ELIOT HOSPITAL NHS TRUST",null,null,"RLT","GEORGE ELIOT HOSPITAL NHS TRUST"]
[null,null,null,null,null,null,null,null,null,null,null,null,null,null,null,null,null,"QWU","RJC","SOUTH WARWICKSHIRE UNIVERSITY NHS FOUNDATION TRUST",null,null,"RJC","SOUTH WARWICKSHIRE UNIVERSITY NHS FOUNDATION TRUST"]
[null,null,null,null,null,null,null,null,null,null,null,null,null,null,null,null,null,"QWU","RKB","UNIVERSITY HOSPITALS COVENTRY AND WARWICKSHIRE NHS TRUST",null,null,"RKB","UNIVERSITY HOSPITALS COVENTRY AND WARWICKSHIRE NHS TRUST"]
[null,null,null,null,null,null,null,null,null,null,null,null,null,null,null,null,null,"QXU","RTK","ASHFORD AND ST PETER'S HOSPITALS NHS FOUNDATION TRUST",null,null,"RTK","ASHFORD AND ST PETER'S HOSPITALS NHS FOUNDATION TRUST"]
[null,null,null,null,null,null,null,null,null,null,null,null,null,null,null,null,null,"QXU","RA2","ROYAL SURREY COUNTY HOSPITAL NHS FOUNDATION TRUST",null,null,"RA2","ROYAL SURREY COUNTY HOSPITAL NHS FOUNDATION TRUST"]
[null,null,null,null,null,null,null,null,null,null,null,null,null,null,null,null,null,"QXU","RTP","SURREY AND SUSSEX HEALTHCARE NHS TRUST",null,null,"RTP","SURREY AND SUSSEX HEALTHCARE NHS TRUST"]
[null,null,null,null,null,null,null,null,null,null,null,null,null,null,null,null,null,"QYG","RJN","EAST CHESHIRE NHS TRUST",null,null,"RJN","EAST CHESHIRE NHS TRUST"]
[null,null,null,null,null,null,null,null,null,null,null,null,null,null,null,null,null,"QYG","RBQ","LIVERPOOL HEART AND CHEST HOSPITAL NHS FOUNDATION TRUST",null,null,"RBQ","LIVERPOOL HEART AND CHEST HOSPITAL NHS FOUNDATION TRUST"]
[null,null,null,null,null,null,null,null,null,null,null,null,null,null,null,null,null,"QYG","REM","LIVERPOOL UNIVERSITY HOSPITALS NHS FOUNDATION TRUST",null,null,"REM","LIVERPOOL UNIVERSITY HOSPITALS NHS FOUNDATION TRUST"]
[null,null,null,null,null,null,null,null,null,null,null,null,null,null,null,null,null,"QYG","REP","LIVERPOOL WOMEN'S NHS FOUNDATION TRUST",null,null,"REP","LIVERPOOL WOMEN'S NHS FOUNDATION TRUST"]
[null,null,null,null,null,null,null,null,null,null,null,null,null,null,null,null,null,"QYG","RBT","MID CHESHIRE HOSPITALS NHS FOUNDATION TRUST",null,null,"RBT","MID CHESHIRE HOSPITALS NHS FOUNDATION TRUST"]
[null,null,null,null,null,null,null,null,null,null,null,null,null,null,null,null,null,"QYG","RVY","SOUTHPORT AND ORMSKIRK HOSPITAL NHS TRUST",null,null,"RVY","SOUTHPORT AND ORMSKIRK HOSPITAL NHS TRUST"]
[null,null,null,null,null,null,null,null,null,null,null,null,null,null,null,null,null,"QYG","RBN","ST HELENS AND KNOWSLEY TEACHING HOSPITALS NHS TRUST",null,null,"RBN","ST HELENS AND KNOWSLEY TEACHING HOSPITALS NHS TRUST"]
[null,null,null,null,null,null,null,null,null,null,null,null,null,null,null,null,null,"QYG","REN","THE CLATTERBRIDGE CANCER CENTRE NHS FOUNDATION TRUST",null,null,"REN","THE CLATTERBRIDGE CANCER CENTRE NHS FOUNDATION TRUST"]
[null,null,null,null,null,null,null,null,null,null,null,null,null,null,null,null,null,"QYG","RET","THE WALTON CENTRE NHS FOUNDATION TRUST",null,null,"RET","THE WALTON CENTRE NHS FOUNDATION TRUST"]
[null,null,null,null,null,null,null,null,null,null,null,null,null,null,null,null,null,"QYG","RWW","WARRINGTON AND HALTON TEACHING HOSPITALS NHS FOUNDATION TRUST",null,null,"RWW","WARRINGTON AND HALTON TEACHING HOSPITALS NHS FOUNDATION TRUST"]
[null,null,null,null,null,null,null,null,null,null,null,null,null,null,null,null,null,"QYG","RBL","WIRRAL UNIVERSITY TEACHING HOSPITAL NHS FOUNDATION TRUST",null,null,"RBL","WIRRAL UNIVERSITY TEACHING HOSPITAL NHS FOUNDATION TRUST"]
[null,null,null,null,null,null,null,null,null,null,null,null,null,null,null,null,null,"IS1","NT401","ALEXANDRA HOSPITAL",null,null,"NT401","ALEXANDRA HOSPITAL"]
[null,null,null,null,null,null,null,null,null,null,null,null,null,null,null,null,null,"IS1","NYW17","ASPEN HEALTHCARE - MIDLAND EYE",null,null,"NYW17","ASPEN HEALTHCARE - MIDLAND EYE"]
[null,null,null,null,null,null,null,null,null,null,null,null,null,null,null,null,null,"IS1","NT402","BATH CLINIC",null,null,"NT402","BATH CLINIC"]
[null,null,null,null,null,null,null,null,null,null,null,null,null,null,null,null,null,"IS1","NT403","BEARDWOOD HOSPITAL",null,null,"NT403","BEARDWOOD HOSPITAL"]
[null,null,null,null,null,null,null,null,null,null,null,null,null,null,null,null,null,"IS1","NT404","BEAUMONT HOSPITAL",null,null,"NT404","BEAUMONT HOSPITAL"]
[null,null,null,null,null,null,null,null,null,null,null,null,null,null,null,null,null,"IS1","NWF01","BENENDEN HOSPITAL",null,null,"NWF01","BENENDEN HOSPITAL"]
[null,null,null,null,null,null,null,null,null,null,null,null,null,null,null,null,null,"IS1","NT405","BISHOPS WOOD HOSPITAL",null,null,"NT405","BISHOPS WOOD HOSPITAL"]
[null,null,null,null,null,null,null,null,null,null,null,null,null,null,null,null,null,"IS1","NT406","BLACKHEATH HOSPITAL",null,null,"NT406","BLACKHEATH HOSPITAL"]
[null,null,null,null,null,null,null,null,null,null,null,null,null,null,null,null,null,"IS1","NT451","CAVELL HOSPITAL",null,null,"NT451","CAVELL HOSPITAL"]
[null,null,null,null,null,null,null,null,null,null,null,null,null,null,null,null,null,"IS1","NT408","CHAUCER HOSPITAL",null,null,"NT408","CHAUCER HOSPITAL"]
[null,null,null,null,null,null,null,null,null,null,null,null,null,null,null,null,null,"IS1","NT409","CHELSFIELD PARK HOSPITAL",null,null,"NT409","CHELSFIELD PARK HOSPITAL"]
[null,null,null,null,null,null,null,null,null,null,null,null,null,null,null,null,null,"IS1","NT410","CHILTERN HOSPITAL",null,null,"NT410","CHILTERN HOSPITAL"]
[null,null,null,null,null,null,null,null,null,null,null,null,null,null,null,null,null,"IS1","NT411","CLEMENTINE CHURCHILL HOSPITAL",null,null,"NT411","CLEMENTINE CHURCHILL HOSPITAL"]
[null,null,null,null,null,null,null,null,null,null,null,null,null,null,null,null,null,"IS1","NNE","DORKING HEALTHCARE LIMITED (DHC)",null,null,"NNE","DORKING HEALTHCARE LIMITED (DHC)"]
[null,null,null,null,null,null,null,null,null,null,null,null,null,null,null,null,null,"IS1","NT412","DROITWICH SPA HOSPITAL",null,null,"NT412","DROITWICH SPA HOSPITAL"]
[null,null,null,null,null,null,null,null,null,null,null,null,null,null,null,null,null,"IS1","NT447","DUCHY HOSPITAL",null,null,"NT447","DUCHY HOSPITAL"]
[null,null,null,null,null,null,null,null,null,null,null,null,null,null,null,null,null,"IS1","NT445","EDGBASTON HOSPITAL",null,null,"NT445","EDGBASTON HOSPITAL"]
[null,null,null,null,null,null,null,null,null,null,null,null,null,null,null,null,null,"IS1","ACM","EYE CARE MEDICAL LTD",null,null,"ACM","EYE CARE MEDICAL LTD"]
[null,null,null,null,null,null,null,null,null,null,null,null,null,null,null,null,null,"IS1","NVG01","FAIRFIELD HOSPITAL",null,null,"NVG01","FAIRFIELD HOSPITAL"]
[null,null,null,null,null,null,null,null,null,null,null,null,null,null,null,null,null,"IS1","NT417","GORING HALL HOSPITAL",null,null,"NT417","GORING HALL HOSPITAL"]
[null,null,null,null,null,null,null,null,null,null,null,null,null,null,null,null,null,"IS1","NT418","HAMPSHIRE CLINIC",null,null,"NT418","HAMPSHIRE CLINIC"]
[null,null,null,null,null,null,null,null,null,null,null,null,null,null,null,null,null,"IS1","NT419","HARBOUR HOSPITAL",null,null,"NT419","HARBOUR HOSPITAL"]
[null,null,null,null,null,null,null,null,null,null,null,null,null,null,null,null,null,"IS1","NQT","HCRG CARE LTD",null,null,"NQT","HCRG CARE LTD"]
[null,null,null,null,null,null,null,null,null,null,null,null,null,null,null,null,null,"IS1","NDA","HCRG CARE SERVICES LTD",null,null,"NDA","HCRG CARE SERVICES LTD"]
[null,null,null,null,null,null,null,null,null,null,null,null,null,null,null,null,null,"IS1","NT416","HENDON HOSPITAL",null,null,"NT416","HENDON HOSPITAL"]
[null,null,null,null,null,null,null,null,null,null,null,null,null,null,null,null,null,"IS1","NT420","HIGHFIELD HOSPITAL",null,null,"NT420","HIGHFIELD HOSPITAL"]
[null,null,null,null,null,null,null,null,null,null,null,null,null,null,null,null,null,"IS1","NXM","HORDER HEALTHCARE",null,null,"NXM","HORDER HEALTHCARE"]
[null,null,null,null,null,null,null,null,null,null,null,null,null,null,null,null,null,"IS1","NT448","HUDDERSFIELD HOSPITAL",null,null,"NT448","HUDDERSFIELD HOSPITAL"]
[null,null,null,null,null,null,null,null,null,null,null,null,null,null,null,null,null,"IS1","NV1","INHEALTH LIMITED",null,null,"NV1","INHEALTH LIMITED"]
[null,null,null,null,null,null,null,null,null,null,null,null,null,null,null,null,null,"IS1","NCR","ISIGHT",null,null,"NCR","ISIGHT"]
[null,null,null,null,null,null,null,null,null,null,null,null,null,null,null,null,null,"IS1","ADP","KIMS HOSPITAL",null,null,"ADP","KIMS HOSPITAL"]
[null,null,null,null,null,null,null,null,null,null,null,null,null,null,null,null,null,"IS1","NT421","KINGS OAK HOSPITAL",null,null,"NT421","KINGS OAK HOSPITAL"]
[null,null,null,null,null,null,null,null,null,null,null,null,null,null,null,null,null,"IS1","NT449","LANCASTER HOSPITAL",null,null,"NT449","LANCASTER HOSPITAL"]
[null,null,null,null,null,null,null,null,null,null,null,null,null,null,null,null,null,"IS1","NT450","LINCOLN HOSPITAL",null,null,"NT450","LINCOLN HOSPITAL"]
[null,null,null,null,null,null,null,null,null,null,null,null,null,null,null,null,null,"IS1","NT422","LONDON INDEPENDENT HOSPITAL",null,null,"NT422","LONDON INDEPENDENT HOSPITAL"]
[null,null,null,null,null,null,null,null,null,null,null,null,null,null,null,null,null,"IS1","NT423","MANOR HOSPITAL",null,null,"NT423","MANOR HOSPITAL"]
[null,null,null,null,null,null,null,null,null,null,null,null,null,null,null,null,null,"IS1","NT424","MERIDEN HOSPITAL",null,null,"NT424","MERIDEN HOSPITAL"]
[null,null,null,null,null,null,null,null,null,null,null,null,null,null,null,null,null,"IS1","NT455","MOUNT ALVERNIA HOSPITAL",null,null,"NT455","MOUNT ALVERNIA HOSPITAL"]
[null,null,null,null,null,null,null,null,null,null,null,null,null,null,null,null,null,"IS1","ACG22","NEWMEDICA - BRIGG - RIVERSIDE SURGERY",null,null,"ACG22","NEWMEDICA - BRIGG - RIVERSIDE SURGERY"]
[null,null,null,null,null,null,null,null,null,null,null,null,null,null,null,null,null,"IS1","ACG20","NEWMEDICA - BRISTOL - LITFIELD HOUSE",null,null,"ACG20","NEWMEDICA - BRISTOL - LITFIELD HOUSE"]
[null,null,null,null,null,null,null,null,null,null,null,null,null,null,null,null,null,"IS1","Q1S8W","NEWMEDICA - BURY ST EDMUNDS",null,null,"Q1S8W","NEWMEDICA - BURY ST EDMUNDS"]
[null,null,null,null,null,null,null,null,null,null,null,null,null,null,null,null,null,"IS1","ACG36","NEWMEDICA - EXETER - GLEN HOUSE",null,null,"ACG36","NEWMEDICA - EXETER - GLEN HOUSE"]
[null,null,null,null,null,null,null,null,null,null,null,null,null,null,null,null,null,"IS1","ACG41","NEWMEDICA - FROME",null,null,"ACG41","NEWMEDICA - FROME"]
[null,null,null,null,null,null,null,null,null,null,null,null,null,null,null,null,null,"IS1","ACG13","NEWMEDICA - GLOUCESTER (ASPEN MEDICAL CENTRE)",null,null,"ACG13","NEWMEDICA - GLOUCESTER (ASPEN MEDICAL CENTRE)"]
[null,null,null,null,null,null,null,null,null,null,null,null,null,null,null,null,null,"IS1","L0D9W","NEWMEDICA - GLOUCESTER (BRIGHOUSE COURT)",null,null,"L0D9W","NEWMEDICA - GLOUCESTER (BRIGHOUSE COURT)"]
[null,null,null,null,null,null,null,null,null,null,null,null,null,null,null,null,null,"IS1","ACG37","NEWMEDICA - IPSWICH",null,null,"ACG37","NEWMEDICA - IPSWICH"]
[null,null,null,null,null,null,null,null,null,null,null,null,null,null,null,null,null,"IS1","ACG38","NEWMEDICA - LANGFORD",null,null,"ACG38","NEWMEDICA - LANGFORD"]
[null,null,null,null,null,null,null,null,null,null,null,null,null,null,null,null,null,"IS1","N6Z0R","NEWMEDICA - LINCOLN",null,null,"N6Z0R","NEWMEDICA - LINCOLN"]
[null,null,null,null,null,null,null,null,null,null,null,null,null,null,null,null,null,"IS1","ACG26","NEWMEDICA - NORTH DERBYSHIRE - MIDLAND COURT",null,null,"ACG26","NEWMEDICA - NORTH DERBYSHIRE - MIDLAND COURT"]
[null,null,null,null,null,null,null,null,null,null,null,null,null,null,null,null,null,"IS1","M4C5R","NEWMEDICA - NORTHAMPTON",null,null,"M4C5R","NEWMEDICA - NORTHAMPTON"]
[null,null,null,null,null,null,null,null,null,null,null,null,null,null,null,null,null,"IS1","B5M7B","NEWMEDICA - NORWICH",null,null,"B5M7B","NEWMEDICA - NORWICH"]
[null,null,null,null,null,null,null,null,null,null,null,null,null,null,null,null,null,"IS1","J3J8Z","NEWMEDICA - OXFORDSHIRE",null,null,"J3J8Z","NEWMEDICA - OXFORDSHIRE"]
[null,null,null,null,null,null,null,null,null,null,null,null,null,null,null,null,null,"IS1","P5Y6K","NEWMEDICA - SHREWSBURY",null,null,"P5Y6K","NEWMEDICA - SHREWSBURY"]
[null,null,null,null,null,null,null,null,null,null,null,null,null,null,null,null,null,"IS1","ACG39","NEWMEDICA - SWINDON",null,null,"ACG39","NEWMEDICA - SWINDON"]
[null,null,null,null,null,null,null,null,null,null,null,null,null,null,null,null,null,"IS1","ACG24","NEWMEDICA - TEESSIDE - NORTH ORMESBY",null,null,"ACG24","NEWMEDICA - TEESSIDE - NORTH ORMESBY"]
[null,null,null,null,null,null,null,null,null,null,null,null,null,null,null,null,null,"IS1","ACG40","NEWMEDICA - WAKEFIELD",null,null,"ACG40","NEWMEDICA - WAKEFIELD"]
[null,null,null,null,null,null,null,null,null,null,null,null,null,null,null,null,null,"IS1","ACG31","NEWMEDICA - WORCESTER",null,null,"ACG31","NEWMEDICA - WORCESTER"]
[null,null,null,null,null,null,null,null,null,null,null,null,null,null,null,null,null,"IS1","ACG30","NEWMEDICA - WORKSOP - DUKERIES",null,null,"ACG30","NEWMEDICA - WORKSOP - DUKERIES"]
[null,null,null,null,null,null,null,null,null,null,null,null,null,null,null,null,null,"IS1","H4J9P","NEWMEDICA AZTEC WEST",null,null,"H4J9P","NEWMEDICA AZTEC WEST"]
[null,null,null,null,null,null,null,null,null,null,null,null,null,null,null,null,null,"IS1","ACG19","NEWMEDICA COMMUNITY OPHTHALMOLOGY - LEEDS",null,null,"ACG19","NEWMEDICA COMMUNITY OPHTHALMOLOGY - LEEDS"]
[null,null,null,null,null,null,null,null,null,null,null,null,null,null,null,null,null,"IS1","ACG07","NEWMEDICA COMMUNITY OPHTHALMOLOGY - LEICESTERSHIRE - LEICESTER (STONEYGATE EYE HOSPITAL)",null,null,"ACG07","NEWMEDICA COMMUNITY OPHTHALMOLOGY - LEICESTERSHIRE - LEICESTER (STONEYGATE EYE HOSPITAL)"]
[null,null,null,null,null,null,null,null,null,null,null,null,null,null,null,null,null,"IS1","ACG12","NEWMEDICA COMMUNITY OPHTHALMOLOGY - NORTH EAST LINCOLNSHIRE - GRIMSBY",null,null,"ACG12","NEWMEDICA COMMUNITY OPHTHALMOLOGY - NORTH EAST LINCOLNSHIRE - GRIMSBY"]
[null,null,null,null,null,null,null,null,null,null,null,null,null,null,null,null,null,"IS1","ACG08","NEWMEDICA OPHTHALMOLOGY - NUNEATON - CAMP HILL - GP LED HEALTH CENTRE",null,null,"ACG08","NEWMEDICA OPHTHALMOLOGY - NUNEATON - CAMP HILL - GP LED HEALTH CENTRE"]
[null,null,null,null,null,null,null,null,null,null,null,null,null,null,null,null,null,"IS1","NT2","NUFFIELD HEALTH",null,null,"NT2","NUFFIELD HEALTH"]
[null,null,null,null,null,null,null,null,null,null,null,null,null,null,null,null,null,"IS1","A9R4J","OPTIMAX - LEICESTER",null,null,"A9R4J","OPTIMAX - LEICESTER"]
[null,null,null,null,null,null,null,null,null,null,null,null,null,null,null,null,null,"IS1","U7W9J","OPTIMAX CLINICS LIMITED",null,null,"U7W9J","OPTIMAX CLINICS LIMITED"]
[null,null,null,null,null,null,null,null,null,null,null,null,null,null,null,null,null,"IS1","NT427","PARK HOSPITAL",null,null,"NT427","PARK HOSPITAL"]
[null,null,null,null,null,null,null,null,null,null,null,null,null,null,null,null,null,"IS1","NMN","PENINSULA HEALTH LLP",null,null,"NMN","PENINSULA HEALTH LLP"]
[null,null,null,null,null,null,null,null,null,null,null,null,null,null,null,null,null,"IS1","NEQ","PHOENIX HEALTH SOLUTIONS LIMITED HQ",null,null,"NEQ","PHOENIX HEALTH SOLUTIONS LIMITED HQ"]
[null,null,null,null,null,null,null,null,null,null,null,null,null,null,null,null,null,"IS1","NEY","PIONEER HEALTHCARE LIMITED",null,null,"NEY","PIONEER HEALTHCARE LIMITED"]
[null,null,null,null,null,null,null,null,null,null,null,null,null,null,null,null,null,"IS1","D3O0Z","PLYMOUTH NEWMEDICA LTD",null,null,"D3O0Z","PLYMOUTH NEWMEDICA LTD"]
[null,null,null,null,null,null,null,null,null,null,null,null,null,null,null,null,null,"IS1","NTP13","PRACTICE PLUS GROUP HOSPITAL - BARLBOROUGH",null,null,"NTP13","PRACTICE PLUS GROUP HOSPITAL - BARLBOROUGH"]
[null,null,null,null,null,null,null,null,null,null,null,null,null,null,null,null,null,"IS1","NTPH2","PRACTICE PLUS GROUP HOSPITAL - EMERSONS GREEN",null,null,"NTPH2","PRACTICE PLUS GROUP HOSPITAL - EMERSONS GREEN"]
[null,null,null,null,null,null,null,null,null,null,null,null,null,null,null,null,null,"IS1","NTP15","PRACTICE PLUS GROUP HOSPITAL - ILFORD",null,null,"NTP15","PRACTICE PLUS GROUP HOSPITAL - ILFORD"]
[null,null,null,null,null,null,null,null,null,null,null,null,null,null,null,null,null,"IS1","NTPH5","PRACTICE PLUS GROUP HOSPITAL - PLYMOUTH",null,null,"NTPH5","PRACTICE PLUS GROUP HOSPITAL - PLYMOUTH"]
[null,null,null,null,null,null,null,null,null,null,null,null,null,null,null,null,null,"IS1","NTPH1","PRACTICE PLUS GROUP HOSPITAL - SHEPTON MALLET",null,null,"NTPH1","PRACTICE PLUS GROUP HOSPITAL - SHEPTON MALLET"]
[null,null,null,null,null,null,null,null,null,null,null,null,null,null,null,null,null,"IS1","NTP11","PRACTICE PLUS GROUP HOSPITAL - SOUTHAMPTON",null,null,"NTP11","PRACTICE PLUS GROUP HOSPITAL - SOUTHAMPTON"]
[null,null,null,null,null,null,null,null,null,null,null,null,null,null,null,null,null,"IS1","NTPAE","PRACTICE PLUS GROUP OPHTHALMOLOGY - NORTH WEST",null,null,"NTPAE","PRACTICE PLUS GROUP OPHTHALMOLOGY - NORTH WEST"]
[null,null,null,null,null,null,null,null,null,null,null,null,null,null,null,null,null,"IS1","NTPAD","PRACTICE PLUS GROUP SURGICAL CENTRE - ST MARYS PORTSMOUTH",null,null,"NTPAD","PRACTICE PLUS GROUP SURGICAL CENTRE - ST MARYS PORTSMOUTH"]
[null,null,null,null,null,null,null,null,null,null,null,null,null,null,null,null,null,"IS1","NT428","PRINCESS MARGARET HOSPITAL",null,null,"NT428","PRINCESS MARGARET HOSPITAL"]
[null,null,null,null,null,null,null,null,null,null,null,null,null,null,null,null,null,"IS1","NT429","PRIORY HOSPITAL",null,null,"NT429","PRIORY HOSPITAL"]
[null,null,null,null,null,null,null,null,null,null,null,null,null,null,null,null,null,"IS1","NAM","PROBUS SURGERY LIMITED",null,null,"NAM","PROBUS SURGERY LIMITED"]
[null,null,null,null,null,null,null,null,null,null,null,null,null,null,null,null,null,"IS1","NVC","RAMSAY HEALTHCARE UK OPERATIONS LIMITED",null,null,"NVC","RAMSAY HEALTHCARE UK OPERATIONS LIMITED"]
[null,null,null,null,null,null,null,null,null,null,null,null,null,null,null,null,null,"IS1","NT430","RIDGEWAY HOSPITAL",null,null,"NT430","RIDGEWAY HOSPITAL"]
[null,null,null,null,null,null,null,null,null,null,null,null,null,null,null,null,null,"IS1","NT431","RUNNYMEDE HOSPITAL",null,null,"NT431","RUNNYMEDE HOSPITAL"]
[null,null,null,null,null,null,null,null,null,null,null,null,null,null,null,null,null,"IS1","NT433","SARUM ROAD HOSPITAL",null,null,"NT433","SARUM ROAD HOSPITAL"]
[null,null,null,null,null,null,null,null,null,null,null,null,null,null,null,null,null,"IS1","NT434","SAXON CLINIC",null,null,"NT434","SAXON CLINIC"]
[null,null,null,null,null,null,null,null,null,null,null,null,null,null,null,null,null,"IS1","NT435","SHELBURNE HOSPITAL",null,null,"NT435","SHELBURNE HOSPITAL"]
[null,null,null,null,null,null,null,null,null,null,null,null,null,null,null,null,null,"IS1","NT436","SHIRLEY OAKS HOSPITAL",null,null,"NT436","SHIRLEY OAKS HOSPITAL"]
[null,null,null,null,null,null,null,null,null,null,null,null,null,null,null,null,null,"IS1","NT437","SLOANE HOSPITAL",null,null,"NT437","SLOANE HOSPITAL"]
[null,null,null,null,null,null,null,null,null,null,null,null,null,null,null,null,null,"IS1","NT490","SOUTHEND PRIVATE HOSPITAL",null,null,"NT490","SOUTHEND PRIVATE HOSPITAL"]
[null,null,null,null,null,null,null,null,null,null,null,null,null,null,null,null,null,"IS1","NT446","ST EDMUNDS HOSPITAL",null,null,"NT446","ST EDMUNDS HOSPITAL"]
[null,null,null,null,null,null,null,null,null,null,null,null,null,null,null,null,null,"IS1","G3Z1Q","SULIS HOSPITAL BATH (FOXCOTE AVENUE)",null,null,"G3Z1Q","SULIS HOSPITAL BATH (FOXCOTE AVENUE)"]
[null,null,null,null,null,null,null,null,null,null,null,null,null,null,null,null,null,"IS1","AAH","TETBURY HOSPITAL TRUST LTD",null,null,"AAH","TETBURY HOSPITAL TRUST LTD"]
[null,null,null,null,null,null,null,null,null,null,null,null,null,null,null,null,null,"IS1","NT440","THORNBURY HOSPITAL",null,null,"NT440","THORNBURY HOSPITAL"]
[null,null,null,null,null,null,null,null,null,null,null,null,null,null,null,null,null,"IS1","NT441","THREE SHIRES HOSPITAL",null,null,"NT441","THREE SHIRES HOSPITAL"]
[null,null,null,null,null,null,null,null,null,null,null,null,null,null,null,null,null,"IS1","D1V8O","ULTRALASE EYE CLINICS LIMITED",null,null,"D1V8O","ULTRALASE EYE CLINICS LIMITED"]
[null,null,null,null,null,null,null,null,null,null,null,null,null,null,null,null,null,"IS1","NT443","WINTERBOURNE HOSPITAL",null,null,"NT443","WINTERBOURNE HOSPITAL"]
[null,null,null,null,null,null,null,null,null,null,null,null,null,null,null,null,null,"IS1","NT457","WOODLANDS HOSPITAL",null,null,"NT457","WOODLANDS HOSPITAL"]